Workbook

Sheet Zoznam
A1: Revízia výdavkov na zdravotníctvo II.
A2: Zdrojové dáta pre grafy a tabuľky v priebežnej správe
A4: Tabuľky | D4: Grafy
A5: Názov: | B5: Odkaz | D5: Názov: | E5: Odkaz
A6: Tabuľka 1: Prehľad najpredávanejších biologických liekov | B6: =HYPERLINK("#tabuľka_1!A1", "tabuľka_1") -> tabuľka_1 | D6: Graf 1: Odvrátiteľná úmrtnosť (na 100 000 obyvateľov) | E6: =HYPERLINK("#graf_1!A1", "graf_1") -> graf_1
A7: Tabuľka 2: Prehľad kategorizovaných biosimilárnych liekov v krajinách V4, august 2018 | B7: =HYPERLINK("#tabuľka_2!A1", "tabuľka_2") -> tabuľka_2 | D7: Graf 2: Očakávaná dĺžka života žien pri narodení | E7: =HYPERLINK("#graf_2!A1", "graf_2") -> graf_2
A8: Tabuľka 3: Povinné zníženie ceny pri vstupe nového lieku do kategorizácie, platné od januára 2018 | B8: =HYPERLINK("#tabuľka_3!A1", "tabuľka_3") -> tabuľka_3 | D8: Graf 3: Počet lekárov (na 1 000 obyv.), 2017 | E8: =HYPERLINK("#graf_3!A1", "graf_3") -> graf_3
A9: Tabuľka 4: Charakteristiky nemocničnej zdravotnej starostlivosti v rokoch 2017 a 2030 | B9: =HYPERLINK("#tabuľka_4!A1", "tabuľka_4") -> tabuľka_4 | D9: Graf 4: Počet lekárov podľa špecializácií | E9: =HYPERLINK("#graf_4!A1", "graf_4") -> graf_4
A10: Tabuľka 5: Záväzky po lehote splatnosti podľa zriaďovateľa nemocnice | B10: =HYPERLINK("#tabuľka_5!A1", "tabuľka_5") -> tabuľka_5 | D10: Graf 5: Počet zdravotných sestier (na 1 000 obyv.), 2000 a 2015 | E10: =HYPERLINK("#graf_5!A1", "graf_5") -> graf_5
A11: Tabuľka 6: Výnosy a náklady 13 najväčších univerzitných a fakultných nemocníc MZ | B11: =HYPERLINK("#tabuľka_6!A1", "tabuľka_6") -> tabuľka_6 | D11: Graf 6: Počet zdravotných sestier (Practising nurses, na 1 000 obyv.), 2016 | E11: =HYPERLINK("#graf_6!A1", "graf_6") -> graf_6
A12: Tabuľka 7: Dojčenská úmrtnosť (na 1 000 živonarodených) | B12: =HYPERLINK("#tabuľka_7!A1", "tabuľka_7") -> tabuľka_7 | D12: Graf 7: Veková štruktúra, lekári a sestry, 2016 | E12: =HYPERLINK("#graf_7!A1", "graf_7") -> graf_7
A13: Tabuľka 8: Výdavky verejného zdravotného poistenia (VZP), 2017 | B13: =HYPERLINK("#tabuľka_8!A1", "tabuľka_8") -> tabuľka_8 | D13: Graf 8: Veková štruktúra, lekári podľa špecializácií (%), 2016 | E13: =HYPERLINK("#graf_8!A1", "graf_8") -> graf_8
A14: Tabuľka 9: Rozpočet Ministerstva zdravotníctva podľa programov | B14: =HYPERLINK("#tabuľka_9!A1", "tabuľka_9") -> tabuľka_9 | D14: Graf 9: Verejné výdavky na lieky* na osobu, bežné ceny, EUR,2016 | E14: =HYPERLINK("#graf_9!A1", "graf_9") -> graf_9
A15: Tabuľka 10. Rozpočet v zdravotníctve (mil. eur) | B15: =HYPERLINK("#tabuľka_10!A1", "tabuľka_10") -> tabuľka_10 | D15: Graf 10: Celková spotreba liekov (v denných dávkach, na 1 000 obyv.) | E15: =HYPERLINK("#graf_10!A1", "graf_10") -> graf_10
A16: Tabuľka 11: Príklad programovej štruktúry – program Ústavná zdravotná starostlivosť | B16: =HYPERLINK("#tabuľka_11!A1", "tabuľka_11") -> tabuľka_11 | D16: Graf 11: Porovnanie zahraničnej a slovenskej spotreby liekov v jednotlivých ATC skupinách, 2016 | E16: =HYPERLINK("#graf_11!A1", "graf_11") -> graf_11
A17: Tabuľka 12: Skutočne vybrané zdroje v zdravotníctve (mil. eur) | B17: =HYPERLINK("#tabuľka_12!A1", "tabuľka_12") -> tabuľka_12 | D17: Graf 12: Spotreba antibiotík (definované denné dávky na 1 000 obyv./deň) | E17: =HYPERLINK("#graf_12!A1", "graf_12") -> graf_12
A18: Tabuľka 13: Zmeny výdavkov - VZP - súhrn | B18: =HYPERLINK("#tabuľka_13!A1", "tabuľka_13") -> tabuľka_13 | D18: Graf 13: Spotreba generík (podiel generík na celkovej spotrebe liekov uhrádzaných z VZP, %) | E18: =HYPERLINK("#graf_13!A1", "graf_13") -> graf_13
A19: Tabuľka 14: Zmeny výdavkov - VZP - bez zmien politík | B19: =HYPERLINK("#tabuľka_14!A1", "tabuľka_14") -> tabuľka_14 | D19: Graf 14: Výdavky na generiká (podiel generík na celkových výdavkoch na lieky uhrádzaných z VZP, %) | E19: =HYPERLINK("#graf_14!A1", "graf_14") -> graf_14
A20: Tabuľka 15: Zmeny výdavkov - VZP - zmeny politík | B20: =HYPERLINK("#tabuľka_15!A1", "tabuľka_15") -> tabuľka_15 | D20: Graf 15: Rozptyl medzi 65 nemocnicami v kvalite zdravotnej starostlivosti | E20: =HYPERLINK("#graf_15!A1", "graf_15") -> graf_15
A21: Tabuľka 16: Zmeny výdavkov - VZP - úsporné opatrenia - Hodnota za peniaze (mil. eur) | B21: =HYPERLINK("#tabuľka_16!A1", "tabuľka_16") -> tabuľka_16 | D21: Graf 16: Počet čakajúcich na plánované výkony k 31.12. | E21: =HYPERLINK("#graf_16!A1", "graf_16") -> graf_16
A22: Tabuľka 17: Zmeny výdavkov – nemocnice (mil. eur) | B22: =HYPERLINK("#tabuľka_17!A1", "tabuľka_17") -> tabuľka_17 | D22: Graf 17: Podiel populácie s časom dojazdu do 30 minút do najbližšej nemocnice | E22: =HYPERLINK("#graf_17!A1", "graf_17") -> graf_17
A23: Tabuľka 18: Opatrenia s ďalším potenciálom pre zefektívnenie | B23: =HYPERLINK("#tabuľka_18!A1", "tabuľka_18") -> tabuľka_18 | D23: Graf 18: Faktory ovplyvňujúce nárast záväzkov podľa účtovných závierok 13 univerzitných a fakultných nemocníc, 2017 | E23: =HYPERLINK("#graf_18!A1", "graf_18") -> graf_18
A24: Tabuľka 19: Výdavky VZP v štruktúre navrhovaných programov, mil. eur | B24: =HYPERLINK("#tabuľka_19!A1", "tabuľka_19") -> tabuľka_19 | D24: Graf 19: Vývoj straty a nárastu záväzkov 13 univerzitných a fakultných nemocníc MZ | E24: =HYPERLINK("#graf_19!A1", "graf_19") -> graf_19
A25: Tabuľka 20: Prehľad minimálnych objemov vybraných výkonov podľa Leapfrog group | B25: =HYPERLINK("#tabuľka_20!A1", "tabuľka_20") -> tabuľka_20 | D25: Graf 20: Percento zaočkovaných proti chrípke, populácia 65+ | E25: =HYPERLINK("#graf_20!A1", "graf_20") -> graf_20
A26: Tabuľka 21: Rozdelenie nemocníc podľa ZS – prvý návrh zo štúdie | B26: =HYPERLINK("#tabuľka_21!A1", "tabuľka_21") -> tabuľka_21 | D26: Graf 21: Percento žien (50-79), ktoré absolvovali skríning na rakovinu prsníka | E26: =HYPERLINK("#graf_21!A1", "graf_21") -> graf_21
A27: Tabuľka 22: Údaje o skríningu karcinómu kolorekta, 2017 | B27: =HYPERLINK("#tabuľka_22!A1", "tabuľka_22") -> tabuľka_22 | D27: Graf 22: Percento žien, ktoré absolvovali preventívnu prehliadku u gynekológa (kŕčok maternice) | E27: =HYPERLINK("#graf_22!A1", "graf_22") -> graf_22
A28: Tabuľka 23: Výpočet dopadu rozšírenia skríningu rakoviny kolorekta | B28: =HYPERLINK("#tabuľka_23!A1", "tabuľka_23") -> tabuľka_23 | D28: Graf 23: Podiel jednodňovej chirurgie na celkovom počte operácií | E28: =HYPERLINK("#graf_23!A1", "graf_23") -> graf_23
A29: Tabuľka 24: Vývoj úhrad zdravotných poisťovní za lieky na výnimky | B29: =HYPERLINK("#tabuľka_24!A1", "tabuľka_24") -> tabuľka_24 | D29: Graf 24: Podiel návštev v ambulanciách špecializovanej starostlivosti zo všetkých (%) | E29: =HYPERLINK("#graf_24!A1", "graf_24") -> graf_24
A30: Tabuľka 25: Prehľad HTA* limitov k 1.1.2018 | B30: =HYPERLINK("#tabuľka_25!A1", "tabuľka_25") -> tabuľka_25 | D30: Graf 25: Počet CT strojov (na 1 mil. obyv.) | E30: =HYPERLINK("#graf_25!A1", "graf_25") -> graf_25
A31: Tabuľka 26: Výsledky v zdravotníctve - úroveň hodnotenia 1: zdravotný stav obyvateľstva | B31: =HYPERLINK("#tabuľka_26!A1", "tabuľka_26") -> tabuľka_26 | D31: Graf 26: Počet CT vyšetrení (na 1 000 obyv.) | E31: =HYPERLINK("#graf_26!A1", "graf_26") -> graf_26
A32: Tabuľka 27: Lieky a zdravotnícke pomôcky | B32: =HYPERLINK("#tabuľka_27!A1", "tabuľka_27") -> tabuľka_27 | D32: Graf 27: Počet MR strojov (na 1 mil. obyv.) | E32: =HYPERLINK("#graf_27!A1", "graf_27") -> graf_27
A33: Tabuľka 28: Prehľad odhadovaných úspor VZP podľa spôsobu stanovenia úhrad liekov | B33: =HYPERLINK("#tabuľka_28!A1", "tabuľka_28") -> tabuľka_28 | D33: Graf 28: Počet MR vyšetrení (na 1 000 obyv.) | E33: =HYPERLINK("#graf_28!A1", "graf_28") -> graf_28
D34: Graf 29: Nárasty počtu vyšetrení na CT a MR v rokoch 2016 – 2018 | E34: =HYPERLINK("#graf_29!A1", "graf_29") -> graf_29
D35: Graf 30: Počet PET strojov (na 1 mil. obyv.) | E35: =HYPERLINK("#graf_30!A1", "graf_30") -> graf_30
D36: Graf 31: Počet PET vyšetrení (na 1 000 obyv.) | E36: =HYPERLINK("#graf_31!A1", "graf_31") -> graf_31
D37: Graf 32: Úmrtnosť na infarkt myokardu do 30 dní od hospitalizácie (na 100 000 obyv., vo veku 45+) | E37: =HYPERLINK("#graf_32!A1", "graf_32") -> graf_32
D38: Graf 33: Počet čakateľov na poskytovanie starostlivosti v zariadeniach sociálnych služieb | E38: =HYPERLINK("#graf_33!A1", "graf_33") -> graf_33
D39: Graf 34: Počet hospitalizácií, resp. pacientov podľa typu dlhodobej starostlivosti, 2017 | E39: =HYPERLINK("#graf_34!A1", "graf_34") -> graf_34
D40: Graf 35: Dĺžka pobytu a náklady na dlhodobú starostlivosť podľa typu služby, 2017 | E40: =HYPERLINK("#graf_35!A1", "graf_35") -> graf_35
D41: Graf 36: Počet hospitalizácií s diagnózou, ktorá má byť manažovaná domácou starostlivosťou, populácia 65+ | E41: =HYPERLINK("#graf_36!A1", "graf_36") -> graf_36
D42: Graf 37: Dojčenská úmrtnosť (počet smrtí v prvom roku života na 1 000 živonarodených) | E42: =HYPERLINK("#graf_37!A1", "graf_37") -> graf_37
D43: Graf 38: Očakávaná dĺžka života pri narodení (v rokoch) | E43: =HYPERLINK("#graf_38!A1", "graf_38") -> graf_38
D44: Graf 39: Vzťah bohatstva krajiny a výdavkov na zdravotníctvo, 2017 | E44: =HYPERLINK("#graf_39!A1", "graf_39") -> graf_39
D45: Graf 40: Výdavky na zdravotníctvo ako % verejných výdavkov | E45: =HYPERLINK("#graf_40!A1", "graf_40") -> graf_40
D46: Graf 41: Vzťah medzi zdravotným stavom obyvateľstva a výdavkami na zdravotníctvo, 2017 | E46: =HYPERLINK("#graf_41!A1", "graf_41") -> graf_41
D47: Graf 42: Výdavky na zdravotníctvo (% HDP) | E47: =HYPERLINK("#graf_42!A1", "graf_42") -> graf_42
D48: Graf 43: Prognóza vývoja vekovej štruktúry obyvateľstva | E48: =HYPERLINK("#graf_43!A1", "graf_43") -> graf_43
D49: Graf 44: Plat lekára ako násobok priemernej mzdy, 2015 | E49: =HYPERLINK("#graf_44!A1", "graf_44") -> graf_44
D50: Graf 45: Plat sestry ako násobok priemernej mzdy, 2015 | E50: =HYPERLINK("#graf_45!A1", "graf_45") -> graf_45
D51: Graf 46: Vzťah kvality a objemu zdravotnej starostlivosti | E51: =HYPERLINK("#graf_46!A1", "graf_46") -> graf_46
D52: Graf 47: Rozsah a medián objemu resekcie rakoviny pažeráka podľa poskytovateľa, 2014-2016 | E52: =HYPERLINK("#graf_47!A1", "graf_47") -> graf_47
D53: Graf 48: Výdavky poisťovní na lieky na výnimky v 1. polroku 2016, 2017 a 2018 | E53: =HYPERLINK("#graf_48!A1", "graf_48") -> graf_48
D54: Graf 49: Výdavky poisťovní na lieky na výnimky v prepočte na 1 000 poistencov v 1. polroku | E54: =HYPERLINK("#graf_49!A1", "graf_49") -> graf_49

Sheet tabuľka_1
A1: =HYPERLINK("#Zoznam!A1", "Na zoznam") -> Na zoznam | B1: Tabuľka 1: Prehľad najpredávanejších biologických liekov
B2: Názov lieku | C2: Účinná látka | D2: Termín vypršania patentovej ochrany | E2: Objem predaja v SR v mil. eur, 2017 | F2: Prvý registrovaný biosimilárnyliek v EMA | G2: Prvý kategorizovaný biosimilárny liek v SR
B3: Humira | C3: adalimumab | D3: 2018 | E3: 45.5 | F3: Áno (2017) | G3: Nie
B4: Avastin | C4: bevacizumab | D4: 2022 | E4: 19.2 | F4: Áno (2018) | G4: Nie
B5: Remicade | C5: infliximab | D5: 2015 | E5: 14.5 | F5: Áno (2013) | G5: Áno (2014)
B6: Lucentis | C6: ranibizumab | D6: 2022 | E6: 12.3 | F6: Nie | G6: Nie
B7: Herceptin | C7: trastuzumab | D7: 2014 | E7: 11.2 | F7: Áno (2017) | G7: Nie*
B8: Enbrel | C8: etanercept | D8: 2015 | E8: 10.5 | F8: Áno (2016) | G8: Nie
B9: MabThera | C9: rituximab | D9: 2013 | E9: 10.5 | F9: Áno (2017) | G9: Nie*
B10: Xolair | C10: omalizumab | D10: 2017 | E10: 7.9 | F10: Nie | G10: Nie
B11: Simponi | C11: golimumab | D11: 2024 | E11: 7.7 | F11: Nie | G11: Nie
B12: Tysabri | C12: natalizumab | D12: 2015 | E12: 6.1 | F12: Nie | G12: Nie
B13: Neulasta | C13: pegfilgrastim | D13: 2017 | E13: 4.2 | F13: Nie | G13: Nie
B14: Erbitux | C14: cetuximab | D14: 2014 | E14: 4 | F14: Nie | G14: Nie
B15: Lantus | C15: insulin glargine | D15: 2014 | E15: 3.3 | F15: Áno (2013) | G15: Áno (2015)
B16: Avonex | C16: interferon beta-1a | D16: 2015 | E16: 2.9 | F16: Nie | G16: Nie
B17: NovoLog/ Novorapid | C17: insulin aspart | D17: 2011 | E17: 2.3 | F17: Nie | G17: Nie
B18: Spolu | E18: 162.1
B19: Pozn.: INEKO použil zdroje: Kawalec a kol. (2017) - termín vypršania patentovanej ochrany (s výnimkou Simponi a Erbitux, kde termíny dohľadal autor); IMS - objem predaja v SR za rok 2017; Farmaceutická fakulta UK - informácia o dostupnosti biosimilárnych liekov v EÚ a SR.
B20: * V júli a auguste 2018 MZ SR schválilo žiadosti o kategorizáciu troch biosimilárnych liekov s účinnými látkami rituximab a trastuzumab. Vstup liekov na trh sa očakáva najskôr v jeseni 2018.
B21: Zdroj: INEKO

Sheet tabuľka_2
A1: =HYPERLINK("#Zoznam!A1", "Na zoznam") -> Na zoznam | B1: Tabuľka 2: Prehľad kategorizovaných biosimilárnych liekov v krajinách V4, august 2018
B2: Rok registrácie v EMA | C2: Molekula | D2: Názov lieku | E2: Firma | F2: SK | G2: CZK | H2: PL | I2: HUN
B3: 2006 | C3: Somatropin | D3: Omnitrope | E3: Sandoz | F3: - | G3: áno | H3: - | I3: áno
B4: 2007 | C4: Epoetin alfa | D4: Binocrit | E4: Sandoz | F4: áno | G4: áno | H4: áno | I4: áno
B5: 2007 | C5: Epoetin zeta | D5: Retacrit | E5: Hospira | F5: - | G5: áno | H5: - | I5: áno
B6: 2008 | C6: Filgrastim | D6: Ratiograstim | E6: Ratiopharm | F6: áno | G6: - | H6: - | I6: áno
B7: 2008 | C7: Filgrastim | D7: Tevagrastim | E7: Teva Generics | F7: - | G7: áno | H7: áno | I7: -
B8: 2009 | C8: Filgrastim | D8: Zarzio | E8: Sandoz | F8: áno | G8: áno | H8: áno | I8: áno
B9: 2010 | C9: Filgrastim | D9: Nivestim | E9: Hospira | F9: - | G9: áno | H9: áno | I9: áno
B10: 2013 | C10: Filgrastim | D10: Grastofil | E10: Apotex | F10: áno | G10: - | H10: áno | I10: -
B11: 2013 | C11: Infliximab | D11: Inflectra | E11: Hospira | F11: áno | G11: áno | H11: áno | I11: áno
B12: 2013 | C12: Follitropin alfa | D12: Ovaleap | E12: Teva Pharma | F12: - | G12: áno | H12: áno | I12: áno
B13: 2013 | C13: Infliximab | D13: Remsima | E13: Celltrion | F13: áno | G13: áno | H13: áno | I13: áno
B14: 2014 | C14: Insulin glargine | D14: Abasaglar | E14: Eli Lilly/Boehringer Ingelheim | F14: áno | G14: áno | H14: áno | I14: áno
B15: 2014 | C15: Filgrastim | D15: Accofil | E15: Accord Healthcare | F15: áno | G15: áno | H15: áno | I15: áno
B16: 2014 | C16: Follitropin alfa | D16: Bemfola | E16: Finox Biotech | F16: áno | G16: áno | H16: áno | I16: áno
B17: 2016 | C17: Etanercept | D17: Benepali | E17: Samsung Bioepis | F17: - | G17: áno | H17: áno | I17: -
B18: 2016 | C18: Infliximab | D18: Flixabi | E18: Samsung Bioepis | F18: - | G18: áno | H18: áno | I18: -
B19: 2017 | C19: Etanercept | D19: Erelzi | E19: Sandoz | F19: - | G19: - | H19: áno | I19: -
B20: 2017 | C20: Rituximab | D20: Truxima | E20: Celltrion | F20: - | G20: áno | H20: - | I20: áno
B21: 2017 | C21: Trastuzumab | D21: Herzuma | E21: Celltrion | F21: - | G21: áno | H21: - | I21: áno
B22: 2017 | C22: Adalimumab | D22: Imraldi | E22: Samsung Bioepis | G22: áno | H22: - | I22: -
B23: Spolu | F23: 9 | G23: 17 | H23: 14 | I23: 14
B24: Zdroj: INEKO, dáta Farmaceutická fakulta UK

Sheet tabuľka_3
A1: =HYPERLINK("#Zoznam!A1", "Na zoznam") -> Na zoznam | B1: Tabuľka 3: Povinné zníženie ceny pri vstupe nového lieku do kategorizácie, platné od januára 2018
C2: 1. liek v ref. skupine | D2: 2. liek v ref. skupine | E2: 3. a ďalší liek ref. skupine
B3: Generický liek | C3: -0.45 | D3: -0.1 | E3: -0.05
B4: Biosimilárny liek | C4: -0.3 | D4: -0.05 | E4: -0.05
B5: Zdroj: aktuálne znenie zákona 363/2011 Z.z.

Sheet tabuľka_4
A1: =HYPERLINK("#Zoznam!A1", "Na zoznam") -> Na zoznam | B1: Tabuľka 4: Charakteristiky nemocničnej zdravotnej starostlivosti v rokoch 2017 a 2030
C2: 2017 | D2: 2017 | E2: 2030
C3: Krajiny záp. Európy | D3: Slovensko súčasný systém | E3: Slovensko súčasný systém
B4: Počet pacientov, v mil. | C4: - | D4: 1 | E4: 1.2
B5: Počet lôžok | C5: - | D5: 32300 | E5: 37400
B6: Priemerná dĺžka hospitalizácie, v dňoch | C6: 6.5 | D6: 8.3 | E6: 8.3
B7: Obsadenosť lôžok | C7: 0.8 | D7: 0.72 | E7: 0.72
B8: Podiel obyvateľstva s dostupnosťou do 30 minút | C8: 86 %* | D8: 0.91 | E8: 0.91
B9: Počet lekárov na lôžko | C9: 0.31 | D9: 0.2 | E9: 0.18
B10: Počet sestier na lôžko | C10: 0.69 | D10: 0.52 | E10: 0.45
B11: Prostriedky k dispozícii na lôžko pri fixnom rozpočte | C11: - | D11: 29200 | E11: 25200
B12: *Výpočet ÚHP s použitím dát v štúdii BCG
B13: Zdroj: OECD, EUROSTAT,NCZI, MZ SR, BCG

Sheet tabuľka_5
A1: =HYPERLINK("#Zoznam!A1", "Na zoznam") -> Na zoznam | B1: Tabuľka 5: Záväzky po lehote splatnosti podľa zriaďovateľa nemocnice
D2: Objem v mil. eur | I2: Rast v mil. eur
D3: 2013 | E3: 2014 | F3: 2015 | G3: 2016 | H3: 2017 | I3: 2014 | J3: 2015 | K3: 2016 | L3: 2017
B4: V pôsobnosti MZ SR | D4: 247 | E4: 334 | F4: 442 | G4: 547 | H4: 679 | I4: 87 | J4: 108 | K4: 105 | L4: 132
B5: V pôsobnosti MV SR, MO SR a MS SR | D5: 18 | E5: 20 | F5: 24 | G5: 25 | H5: 26 | I5: 2 | J5: 4 | K5: 1 | L5: 1
B6: Delimitované na obce a VÚC a transformované na n.o. | D6: 72 | E6: 77 | F6: 84 | G6: 75 | H6: 85 | I6: 5 | J6: 7 | K6: -9 | L6: 10
B7: Transformované na akciové spoločnosti | D7: 0 | E7: 0 | F7: 0 | G7: 0 | H7: 1 | I7: 0 | J7: 0 | K7: 0 | L7: 1
B8: Záväzky po lehote splatnosti spolu | D8: 337 | E8: 431 | F8: 550 | G8: 647 | H8: 791 | I8: 94 | J8: 119 | K8: 97 | L8: 144
B9: Zdroj: MZ, ÚHP

Sheet tabuľka_6
A1: =HYPERLINK("#Zoznam!A1", "Na zoznam") -> Na zoznam | B1: Tabuľka 6: Výnosy a náklady 13 najväčších univerzitných a fakultných nemocníc MZ
E2: Objem v mil. eur | K2: Rast | R2: Rozdiel oproti plánu v mil. eur
E3: 2013 | F3: 2014 | G3: 2015 | H3: 2016 | I3: 2017 | J3: 2017 P* | K3: 2014 | L3: 2015 | M3: 2016 | O3: 2017 | Q3: 2017 P* | R3: 2017
B4: Výnosy celkom | E4: 682 | F4: 685 | G4: 719 | H4: 762 | I4: 784 | J4: 785 | K4: 0.004 | L4: 0.05 | N4: 0.06 | P4: 0.029 | Q4: 0.001 | R4: -1
C5: Výnosy zo ZP | E5: 606 | F5: 637 | G5: 663 | H5: 707 | I5: 721 | J5: 718 | K5: 0.051 | L5: 0.041 | N5: 0.066 | P5: 0.02 | Q5: -0.004 | R5: 3
D6: VšZP | E6: 436 | F6: 458 | G6: 478 | H6: 513 | I6: 520 | J6: 525 | K6: 0.05 | L6: 0.044 | N6: 0.073 | P6: 0.014 | Q6: 0.01 | R6: -5
D7: Dôvera | E7: 132 | F7: 137 | G7: 142 | H7: 148 | I7: 156 | J7: 148 | K7: 0.038 | L7: 0.038 | N7: 0.043 | P7: 0.049 | Q7: -0.051 | R7: 8
D8: Union | E8: 38 | F8: 42 | G8: 43 | H8: 45 | I8: 45 | J8: 46 | K8: 0.105 | L8: 0.014 | N8: 0.063 | P8: -0.001 | Q8: 0.022 | R8: -1
B9: Náklady celkom | E9: 702 | F9: 736 | G9: 783 | H9: 843 | I9: 861 | J9: 836 | K9: 0.048 | L9: 0.064 | N9: 0.077 | P9: 0.021 | Q9: -0.029 | R9: 25
C10: Osobné náklady | E10: 418 | F10: 434 | G10: 460 | H10: 490 | I10: 513 | J10: 486 | K10: 0.038 | L10: 0.059 | N10: 0.066 | P10: 0.048 | Q10: -0.053 | R10: 27
C11: Lieky a ŠZM** | E11: 178 | F11: 190 | G11: 210 | H11: 238 | I11: 229 | J11: 188 | K11: 0.067 | L11: 0.109 | N11: 0.131 | P11: -0.038 | Q11: -0.179 | R11: 41
C12: Ostatné náklady | E12: 106 | F12: 112 | G12: 113 | H12: 115 | I12: 119 | J12: 60 | K12: 0.058 | L12: 0.004 | N12: 0.02 | P12: 0.03 | Q12: -0.496 | R12: 59
B13: EBITDA*** | E13: -20 | F13: -51 | G13: -64 | H13: -81 | I13: -77 | J13: -52 | K13: 1.55 | L13: 0.255 | N13: 0.266 | P13: -0.049 | Q13: -0.325 | R13: -25
B14: *P – plán vo výkaze o hospodárení nemocníc MZ
B15: ** Špeciálny zdravotnícky materiál, predstavuje invazívne zdravotnícke pomôcky, ktoré sa používajú takmer výlučne v ústavnej zdravotnej starostlivosti
B16: ***Prevádzkový hospodársky výsledok pred úrokmi, daňami, odpismi a amortizáciou
B17: Zdroj: MZ

Sheet tabuľka_7
A1: =HYPERLINK("#Zoznam!A1", "Na zoznam") -> Na zoznam | B1: Tabuľka 7: Výsledkové ukazovatele zdravotníctva
B2: Ukazovateľ | C2: SK/ Benchmark | D2: 2011 | E2: 2012 | F2: 2013 | G2: 2014 | H2: 2015 | I2: 2016
B5: Dojčenská úmrtnosť na 1 000 živonarodených | C5: SK | D5: 4.9 | E5: 5.8 | F5: 5.5 | G5: 5.8 | H5: 5.1 | I5: 5.4
C6: V3 | D6: 4.1 | E6: 4 | F6: 4 | G6: 3.7 | H6: 3.6 | I6: 3.6
C7: EU28 | D7: 3.9 | E7: 3.8 | F7: 3.7 | G7: 3.7 | H7: 3.6 | I7: 3.6
B8: Zdroj: OECD

Sheet tabuľka_8
A1: =HYPERLINK("#Zoznam!A1", "Na zoznam") -> Na zoznam | B1: Tabuľka 8: Výdavky verejného zdravotného poistenia (VZP), 2017
C2: mil. eur | D2: podiel z VZP
B3: Zdravotná starostlivosť | C3: 4341 | D3: 0.949
B4: Lieky, pomôcky | C4: 1258 | D4: 0.275
B5: Lieky a pomôcky | C5: 1070 | D5: 0.234
B6: Zdravotnícke pomôcky | C6: 188 | D6: 0.041
B7: Ústavná zdravotná starostlivosť | C7: 1276 | D7: 0.279
B8: Ambulantná zdravotná starostlivosť | C8: 1044 | D8: 0.228
B9: Všeobecná zdravotná starostlivosť | C9: 235 | D9: 0.051
B10: Špecializovaná zdravotná starostlivosť | C10: 809 | D10: 0.177
B11: SVLZ* | C11: 495 | D11: 0.108
B12: Pohotovosť, záchranná služba, doprava | C12: 192 | D12: 0.042
B13: Pohotovostná služba PP | C13: 16 | D13: 0.003
B14: Záchranná zdravotná služba | C14: 87 | D14: 0.019
B15: Kúpeľná starostlivosť | C15: 52 | D15: 0.011
B16: Doprava | C16: 26 | D16: 0.006
B17: Vrtuľníková záchranná služba | C17: 11 | D17: 0.002
B18: Ostatné subjekty a iná ZS | C18: 76 | D18: 0.017
B19: Iné výdavky zdravotných poisťovní** | C19: 235 | D19: 0.051
B20: VZP spolu | C20: 4576
B21: *spoločné vyšetrovacie a liečebné zložky (napr. CT a MR) **napríklad výdavky na správu
B22: Zdroj: MZ SR

Sheet tabuľka_9
A1: =HYPERLINK("#Zoznam!A1", "Na zoznam") -> Na zoznam | B1: Tabuľka 9: Rozpočet Ministerstva zdravotníctva podľa programov
B2: Program | C2: Suma v eur
B3: Prevencia a ochrana zdravia | C3: 312073.16
B4: Zdravotná starostlivosť | C4: 11136103.92
B5: Tvorba a implementácia politík | C5: 4273844.17
B6: Realizácia II. etapy implementácie Medzinárodných zdravotných predpisov Svetovej zdravotníckej organizácie v SR | C6: 49200
B7: Informačné technológie financované zo štátneho rozpočtu | C7: 63870
B8: Zdroj: MZ[1]
B9: [1] MZ SR. Návrh záverečného účtu MZ SR za rok 2017. http://www.health.gov.sk/Clanok?zu-mzsr-2017.

Sheet tabuľka_10
A1: =HYPERLINK("#Zoznam!A1", "Na zoznam") -> Na zoznam | B1: Tabuľka 10: Rozpočet v zdravotníctve (mil. eur)
B2: Rozpočtová organizácia | C2: 2015 S* | D2: 2016 S | E2: 2017 S | F2: 2018 R* | G2: 2018 OS* | H2: 2019 N | I2: 2020 N | J2: 2021 N
B3: Ministerstvo zdravotníctva | C3: 57 | D3: 69 | E3: 80 | F3: 143 | G3: 116 | H3: 181 | I3: 152 | J3: 152
B4: Verejné zdravotné poistenie | C4: 4214 | D4: 4539 | E4: 4576 | F4: 4711 | G4: 4817 | H4: 4931 | I4: 5045 | J4: 5201
B5: VZP/ MZ SR | C5: 74 | D5: 66 | E5: 57 | F5: 33 | G5: 42 | H5: 27 | I5: 33 | J5: 34
B6: *S – skutočnosť, OS – očakávaná skutočnosť, N - návrh
B7: Zdroj: Príloha 1 k RVS a RVS 2018 - 2020 schválený NR SR

Sheet tabuľka_11
A1: =HYPERLINK("#Zoznam!A1", "Na zoznam") -> Na zoznam | B1: Tabuľka 11: Príklad programovej štruktúry – program Ústavná zdravotná starostlivosť
B2: Program | C2: Ústavná zdravotná starostlivosť | D2: 2017 | E2: 2018 | F2: 2019 | G2: 2020 | H2: 2021
B3: Ciele | C3: Zvyšovanie kvality poskytovanej ZS pomocou koncentrácie výkonov o 5%
C6: Znižovanie dĺžky hospitalizácie v súlade so schválenou stratifikáciou nemocníc
B7: Nástroje | C7: Stratifikácia siete nemocníc (časť 5.2.1)
C8: Úprava spôsobu odmeňovania personálu
B9: Merateľné ukazovatele | C9: Celkové náklady ústavnej zdravotnej starostlivosti v mil. eur
C10: Plán
C11: Skutočnosť
C12: EBITDA v mil. eur
C13: Plán
C14: Skutočnosť
C15: Záväzky po lehote splatnosti v mil. eur
C16: Plán
C17: Skutočnosť
C18: Priemerná dĺžka hospitalizácie v dňoch
C19: Plán
C20: Skutočnosť
C21: Počet lekárov (na 1 000 obyvateľov)
C22: Plán
C23: Skutočnosť
C24: Počet sestier (na 1 000 obyvateľov)
C25: Plán
C26: Skutočnosť
C27: Výška kapitálových výdavkov v mil. eur
C28: Plán
C29: Skutočnosť
B30: Zdroj: Predbežný návrh ÚHP a IJ

Sheet tabuľka_12
A1: =HYPERLINK("#Zoznam!A1", "Na zoznam") -> Na zoznam | B1: Tabuľka 12: Skutočne vybrané zdroje v zdravotníctve (mil. eur)
C2: 2015 | D2: 2016 | E2: 2017
B3: Vybrané zdroje spolu | C3: 4290 | D3: 4394 | E3: 4641
B4: príjmy od EAO (vrátane RZZP) | C4: 2880 | D4: 2953 | E4: 3292
B5: príjmy za poistencov štátu (vrátane RZ) | C5: 1349 | D5: 1392 | E5: 1299
B6: ostatné príjmy VZP | C6: 61 | D6: 49 | E6: 50
B7: Pozn.: EAO – ekonomicky aktívne osoby, RZZP – ročné zúčtovanie zdravotného poistenia, RZ – ročné zúčtovanie
B8: Zdroj: Návrh záverečného účtu MZ SR 2017

Sheet tabuľka_13
A1: =HYPERLINK("#Zoznam!A1", "Na zoznam") -> Na zoznam | B1: Tabuľka 13: Zmeny výdavkov - VZP - súhrn
B2: mil. eur | C2: 2019
B3: Zmeny spolu (oproti rozpočtu 2018) | C3: 219
B4: Zmeny spolu (oproti rozpočtu 2018; %) | C4: 0.047
B5: Zdroj: Návrh RVS 2019 - 2021 schválený vládou

Sheet tabuľka_14
A1: =HYPERLINK("#Zoznam!A1", "Na zoznam") -> Na zoznam | B1: Tabuľka 14: Zmeny výdavkov - VZP - bez zmien politík
B2: č. | C2: mil. eur | E2: 2019
C3: Spolu | E3: 131
B4: 1 | C4: Nemzdové (rast o CPI) | E4: 29
C5: Mzdové | E5: 96
B6: 2 | C6: Automat lekári ÚZS | E6: 23
B7: 3 | C7: Automat ostatní ÚZS + MM* | E7: 36
B8: 4 | C8: Nezdravotnícki zamestnanci | E8: 9
B9: 5 | C9: Ambulantní zdravotnícki zamestnanci | E9: 28
C10: Iné výdavky VZP | E10: -17
B11: 6 | C11: Správa ZP, príspevky na UDZS, OS ZZS, NCZI, iné úhrady | E11: -17
B12: 7 | C12: Starnutie | E12: 23
B13: *MM – minimálna mzda
B14: Zdroj: Návrh RVS 2019 - 2021 schválený vládou

Sheet tabuľka_15
A1: =HYPERLINK("#Zoznam!A1", "Na zoznam") -> Na zoznam | B1: Tabuľka 15: Zmeny výdavkov - VZP - zmeny politík
B2: č. | C2: mil. eur | D2: 2019
C3: Spolu | D3: 180
C4: Hodnotové opatrenia - Hodnota za peniaze | D4: 87
B5: 8 | C5: Rast miezd nelekárskeho personálu ÚZS | D5: 59
B6: 9 | C6: Rast miezd nelekárskeho personálu AZS | D6: 18
B7: 10 | C7: Prevencia - skríningy | D7: 5
B8: 11 | C8: Zazmluvnenie nových SVLZ poskytovateľov* | D8: 0
B9: 12 | C9: Zmena financovania RTG | D9: 5
C10: Ostatné zmeny politík | D10: 93
B11: 13 | C11: Rast príplatkov za prácu v noci, cez víkendy a sviatky | D11: 24
B12: 14 | C12: Lieky - novela 363/2011 | D12: 56
B13: 15 | C13: Ochranný limit doplatkov* | D13: 0
B14: 16 | C14: Dofinancovanie VšZP pre nemocnice* | D14: 0
B15: 17 | C15: Dofinancovanie nákladov ambulancií so zavedením e-Health a bonusy za jeho využívanie | D15: 2
B16: 18 | C16: Urgenty - paušály | D16: 7
B17: 19 | C17: ZZS - paušály | D17: 1
B18: 20 | C18: Dlhodobá starostlivosť | D18: 0
B19: 21 | C19: Nárast liečby v cudzine | D19: 3
B20: Pozn.: * - opatrenie s vplyvom v roku 2018
B21: Zdroj: Návrh RVS 2019 - 2021 schválený vládou

Sheet tabuľka_16
A1: =HYPERLINK("#Zoznam!A1", "Na zoznam") -> Na zoznam | B1: Tabuľka 16: Zmeny výdavkov - VZP - úsporné opatrenia - Hodnota za peniaze (mil. eur)
B2: č. | D2: 2019
C3: Spolu | D3: -92
B4: 22 | C4: Revízia úhrad kategorizovaných liekov | D4: -50
B5: 23 | C5: Lieky - variabilita v predpisovaní, vplyv e-preskripcie | D5: -30
B6: 24 | C6: Výnimky na lieky - zavedenie pravidiel pre preplácanie výnimiek | D6: -8
B7: 25 | C7: Zdravotnícke pomôcky – externé referencovanie a revízne činnosti | D7: -4
B8: Zdroj: Návrh RVS 2019 - 2021 schválený vládou

Sheet tabuľka_17
A1: =HYPERLINK("#Zoznam!A1", "Na zoznam") -> Na zoznam | B1: Tabuľka 17: Zmeny výdavkov – nemocnice (mil. eur)
B2: č. | D2: 2019
C3: Úsporné opatrenia | D3: -46
B4: 26 | C4: Optimalizácia prevádzkových nákladov | D4: -5
B5: 27 | C5: Optimalizácia procesov ÚZS | D5: -32
B6: 28 | C6: Optimalizácia nákupu liekov a ŠZM[1] | D6: -1
B7: 29 | C7: ŠZM - zníženie cien - externé referencovanie | D7: 0
B8: 30 | C8: ŠZM - referencovanie kategorizovaného ŠZM | D8: -8
B9: 31 | C9: ŠZM - zavedenie základného funkčného typu | D9: 0
B10: [1] ŠZM predstavuje invazívne zdravotnícke pomôcky, ktoré sa používajú takmer výlučne v ústavnej zdravotnej starostlivosti.
B11: Zdroj: Návrh RVS 2019 - 2021 schválený vládou

Sheet tabuľka_18
A1: =HYPERLINK("#Zoznam!A1", "Na zoznam") -> Na zoznam | B1: Tabuľka 18: Opatrenia s ďalším potenciálom pre zefektívnenie
B2: Centrálny nákup liekov a zmluvy o zdieľaní rizika a nákladov
B3: Možnosti potenciálne nákladovo neefektívnych liekov
B4: Zníženie jednotkových cien a limitov vyšetrení
B5: Variabilita v predpisovaní vyšetrení
B6: Zlepšenie revíznych činností VšZP
B7: Úprava stanovenia výdavkov správneho fondu
B8: Zdroj: Návrh RVS 2019 - 2021 schválený vládou

Sheet tabuľka_19
A1: =HYPERLINK("#Zoznam!A1", "Na zoznam") -> Na zoznam | B1: Tabuľka 19: Výdavky VZP v štruktúre navrhovaných programov, mil. eur
B2: mil. eur | C2: 2016 S | D2: 2017 S | E2: 2018 R | F2: 2018 OS | G2: 2019 N
B3: Zdravotná starostlivosť | C3: 4300 | D3: 4341 | E3: 4467 | F3: 4494 | G3: 4704
B4: Lieky a dietetické potraviny | C4: 1060 | D4: 1070 | E4: 1101 | F4: 1107 | G4: 1069
B5: Zdravotnícke pomôcky a ŠZM | C5: 186 | D5: 188 | E5: 194 | F5: 195 | G5: 190
B6: ÚZS (lôžka) | C6: 1264 | D6: 1276 | E6: 1313 | F6: 1321 | G6: 1466
B7: VAS | C7: 233 | D7: 235 | E7: 242 | F7: 243 | G7: 256
B8: SVLZ | C8: 491 | D8: 495 | E8: 510 | F8: 513 | G8: 527
B9: ŠAS | C9: 802 | D9: 809 | E9: 833 | F9: 838 | G9: 877
B10: Pohotovostná služba PP | C10: 15 | D10: 16 | E10: 16 | F10: 16 | G10: 17
B11: Záchr. zdravotná služba | C11: 86 | D11: 87 | E11: 89 | F11: 90 | G11: 96
B12: Kúpeľná starostlivosť | C12: 52 | D12: 52 | E12: 54 | F12: 54 | G12: 56
B13: Doprava | C13: 26 | D13: 26 | E13: 27 | F13: 27 | G13: 27
B14: Vrtuľníková záchr. služba | C14: 11 | D14: 11 | E14: 12 | F14: 12 | G14: 12
B15: Ostatné subjekty a iná ZS | C15: 75 | D15: 76 | E15: 78 | F15: 78 | G15: 111
B16: Iné výdavky VZP | C16: 239 | D16: 235 | E16: 244 | F16: 323 | G16: 227
B17: VZP spolu | C17: 4539 | D17: 4576 | E17: 4711 | F17: 4817 | G17: 4931
B18: Zdroj: Návrh RVS 2019 - 2021 schválený vládou

Sheet tabuľka_20
A1: =HYPERLINK("#Zoznam!A1", "Na zoznam") -> Na zoznam | B1: Tabuľka 20: Prehľad minimálnych objemov vybraných výkonov podľa Leapfrog group
B2: Výkon | C2: Minimálny počet (the Leapfrog Group) | D2: Minimálny počet (Iné krajiny)
B4: Resekcia – rakovina pažeráka | C4: 20 | D4: 10 (Nemecko)
D5: 20 (Holandsko)
B6: Operácia – rakovina konečníka | C6: 16
B7: Operácia – rakovina pankreasu | C7: 20 | D7: 10 (Nemecko)
D8: 20 (Holandsko)
B9: Operácia – rakovina pľúc | C9: 40 | D9: 20 (Holandsko)
B10: Zdroj: Štúdia MZ SR a Svetovej Banky – Minimal Volume Threshold

Sheet tabuľka_21
A1: =HYPERLINK("#Zoznam!A1", "Na zoznam") -> Na zoznam | B1: Tabuľka 21: Rozdelenie nemocníc podľa ZS
B2: Úroveň ZS | C2: Základná ZS | D2: Regionálna ZS | E2: Národná ZS
B3: Typ nemocnice
B4: Lokálna nemocnica | C4: musí poskytovať | D4: môže poskytovať, ak splní štandardy | E4: nemôže poskytovať
B7: Regionálna nemocnica | C7: musí poskytovať, ale v pomerne menšej miere | D7: musí poskytovať aspoň jednu špecializáciu | E7: môže poskytovať,
E9: ak splní štandardy
B10: Národná nemocnica | C10: musí poskytovať, ale v pomerne menšej miere | D10: musí poskytovať, ale v pomerne menšej miere | E10: musí poskytovať aspoň jednu špecializáciu
B13: Geografické rozloženie | C13: dostupnosť do 30 minút 45 spádových oblastí | D13: dostupnosť do 60 minút 10 spádových oblastí | E13: dostupnosť do 120 minút 3 spádové oblasti
B16: Zdroj: Štúdia k stratifikácii nemocníc MZ

Sheet tabuľka_22
A1: =HYPERLINK("#Zoznam!A1", "Na zoznam") -> Na zoznam | B1: Tabuľka 22: Údaje o skríningu karcinómu kolorekta, 2017
B2: Štatistiky z dát zdravotných poisťovní z roku 2017 | C2: Hodnota
B3: Počet ľudí vo veku 50-75 | C3: 1625413
B4: Priemerný počet vyšetrení na test krvi v stolici za rok | C4: 249694
B5: Jednotková cena skríningového testu krvi v stolici | C5: 11
B6: V prípade pozitívneho výsledku, podstúpi kolonoskopiu z pôvodného počtu pacientov testovaných na krv v stolici | C6: 0.06
B7: Priemerná cena kolonoskopického vyšetrenia | C7: 82
B8: Z realizovaných kolonoskopií má pozitívny nález | C8: 0.2
B9: Výskyt ochorenia ročný | C9: 3011
B10: Ročná mortalita na diagnózu C18, C19, C20, C21* | C10: 2000
B11: Počet liečených pacientov ročne | C11: 8700
B12: Ročné náklady na liečbu 1 pacienta | C12: 7000
B13: *C18 – zhubný nádor hrubého čreva, C19 – zhubný nádor rektorsigmoidového spojenia, C20 – zhubný nádor konečníka, C21 – zhubný nádor anusu a análneho kanála
B14: Zdroj: MZ SR

Sheet tabuľka_23
A1: =HYPERLINK("#Zoznam!A1", "Na zoznam") -> Na zoznam | B1: Tabuľka 23: Výpočet dopadu rozšírenia skríningu rakoviny kolorekta
B2: Modelovanie nákladov a prínosov opatrenia na obdobie 1 roka | C2: Hodnota
B3: Počet ľudí, ktorí podstúpia dodatočne skríning oproti súčasnému stavu | C3: 156660
B4: Dodatočné náklady pri navýšení počtu testov na krv v stolici na 50% populácie, vek 50+ | C4: -1723255
B5: Následné dodatočné náklady na kolonoskopiu | C5: -776036
B6: Administratívne náklady spojené so zvolávaním na vyšetrenie (0,4 €/obyv.) | C6: -225205
B7: Marginálný výskyt ochorenia, zreálnená na 50% | C7: 945
B8: Marginálne náklady na liečbu novodiagnostikovaných pacientov s predpokladom včasného zachytenia karcinómu kolorekta len v 1. alebo 2. štádiu | C8: -2267176
B9: Celkové marginálne náklady na opatrenie | C9: -4991671
B10: Náklady na liečbu ak by títo pacienti podstúpili diagnostiku podľa NPC | C10: -6612597
B11: Čistý finančný prínos rozsiahlejšej diagnostiky na nižšie náklady liečby | C11: 1620926
B12: Počet odvrátených úmrtí podľa scenára vyrovnania priemeru mortality krajín EU (z 37 na 30 úmrtí /100tis. ob. od roku 2020) | C12: 362
B13: Hodnota 1 odvráteného úmrtia | C13: 40918
B14: Celkový čistý spoločenský prínos opatrenia | C14: 16433242
C15: Zdroj: MZ SR

Sheet tabuľka_24
A1: =HYPERLINK("#Zoznam!A1", "Na zoznam") -> Na zoznam | B1: Tabuľka 24: Vývoj úhrad zdravotných poisťovní za lieky na výnimky
C2: 1. polrok
C3: 2016 | D3: 2017 | E3: 2018
B4: Celková úhrada poisťovní za lieky na výnimky, eur | C4: 19156870 | D4: 19008416 | E4: 18816587
B5: Medziročná zmena v absolútnom vyjadrení, eur | D5: -148454 | E5: -191829
B6: Medziročná zmena v, % | D6: -0.01 | E6: -0.01
B7: Zdroj: ZP, prepočty Implementačná jednotka (IJ)

Sheet tabuľka_25
A1: =HYPERLINK("#Zoznam!A1", "Na zoznam") -> Na zoznam | B1: Tabuľka 25: Prehľad HTA* limitov k 1.1.2018
C2: Veľká Británia | D2: Poľsko | E2: Maďarsko | F2: Slovensko
B3: Dolný limit (EUR/QALY) | C3: 22.408 | D3: 22.991 | E3: - | F3: 31.92
B4: Horný limit (EUR/QALY) | C4: 33.612 | D4: 34.487 | E4: 34.741 | F4: 37.392
B5: Špeciálny limit (EUR/QALY) | C5: 56,021* | D5: - | E5: - | F5: Lieky na zriedkavé ochorenia nemajú limit
B8: *lieky pre pacientov v záverečnej fáze života
B9: Zdroj: MZ SR

Sheet tabuľka_26
A1: =HYPERLINK("#Zoznam!A1", "Na zoznam") -> Na zoznam | B1: Tabuľka 26: Výsledky v zdravotníctve - úroveň hodnotenia 1: zdravotný stav obyvateľstva
B2: Ukazovateľ | C2: Zdroj | D2: SK/Benchmark | E2: 2011 | F2: 2012 | G2: 2013 | H2: 2014 | I2: 2015 | J2: 2016
B5: Úmrtnosť odvrátiteľná systémom zdravotnej starostlivosti (na 100 000 obyvateľov) | C5: Eurostat | D5: SK | E5: 262.2 | F5: 260.6 | G5: 261.5 | H5: 242.8 | I5: 250 | J5: -
D6: V3 | E6: 227.3 | F6: 222.4 | G6: 215.8 | H6: 204.2 | I6: 205.2 | J6: -
D7: EÚ28 | E7: 169 | F7: 165.4 | G7: 159.8 | H7: 152.8 | I7: 153.5 | J7: -
D8: EÚ15 | E8: 0 | F8: 0 | G8: 0 | H8: 0 | I8: 0 | J8: -
B9: Potenciálne stratené roky života z predchádzateľných príčin, ženy (na 100 000 obyvateľov) | C9: OECD | D9: SK | E9: - | F9: 2916 | G9: 2969 | H9: 2855 | I9: - | J9: -
D10: V3 | E10: 3035 | F10: 2958 | G10: 2846 | H10: 2750 | I10: 2747 | J10: 2686
D11: EÚ28 | E11: 2464 | F11: 2406 | G11: 2370 | H11: 2271 | I11: 2259 | J11: 2448
D12: EÚ15 | E12: 2130 | F12: 2068 | G12: 2027 | H12: 1955 | I12: 1918 | J12: 1943
B13: Očakávaná dĺžka života pri narodení, ženy | C13: OECD | D13: SK | E13: 79.8 | F13: 79.9 | G13: 80.1 | H13: 80.5 | I13: 80.2 | J13: 80.7
D14: V3 | E14: 80.3 | F14: 80.3 | G14: 80.5 | H14: 81 | I14: 80.7 | J14: 81.3
D15: EÚ28 | E15: 82.6 | F15: 82.6 | G15: 82.8 | H15: 83.2 | I15: 82.9 | J15: 83.1
D16: EÚ15 | E16: 83.7 | F16: 83.6 | G16: 83.9 | H16: 84.3 | I16: 84 | J16: 84.2
B17: Úmrtnosť na choroby obehovej sústavy, štandardizovaná (na 100 tis. obyv.) | C17: OECD | D17: SK | E17: - | F17: 436.3 | G17: 445.7 | H17: 422.4 | I17: - | J17: -
D18: V3 | E18: 531 | F18: 539.4 | G18: 531.7 | H18: 515 | I18: 541.2 | J18: 545.5
D19: EÚ28 | E19: 394.1 | F19: 403.6 | G19: 398.6 | H19: 389.3 | I19: 424.2 | J19: 470.4
D20: EÚ15 | E20: 305.9 | F20: 310.5 | G20: 302.1 | H20: 294 | I20: 318.1 | J20: 308.7
B21: Úmrtnosť na nádory, štandardizovaná (na 100 tis. obyv.) | C21: OECD | D21: SK | E21: - | F21: 237.3 | G21: 247.1 | H21: 249.9 | I21: - | J21: -
D22: V3 | E22: 276.2 | F22: 281.3 | G22: 278.7 | H22: 280.1 | I22: 284.2 | J22: 297.1
D23: EÚ28 | E23: 252.9 | F23: 254.3 | G23: 254.1 | H23: 256.2 | I23: 263.1 | J23: 267.3
D24: EÚ15 | E24: 241.8 | F24: 243.3 | G24: 241.8 | H24: 243.7 | I24: 247.8 | J24: 241.3
B25: Prevalencia obezity (%) podiel u dospelých | C25: OECD | D25: SK | E25: - | F25: - | G25: - | H25: 54.2 | I25: - | J25: -
D26: V3 | E26: - | F26: - | G26: - | H26: 54.4 | I26: - | J26: -
D27: EÚ28 | E27: 48.8 | F27: 47.5 | G27: 48 | H27: 51.2 | I27: 50 | J27: 51
D28: EÚ15 | E28: 48.8 | F28: 47 | G28: 48 | H28: 49.6 | I28: 50 | J28: 50.8
B29: Prevalencia vysokého tlaku (%) podiel u dospelých | C29: Eurostat | D29: SK | E29: - | F29: - | G29: - | H29: 25.8 | I29: - | J29: -
D30: V3 | E30: - | F30: - | G30: - | H30: 26.2 | I30: - | J30: -
D31: EÚ28 | E31: - | F31: - | G31: - | H31: 21.5 | I31: - | J31: -
D32: EÚ15 | E32: - | F32: - | G32: - | H32: 19.3 | I32: - | J32: -
B33: Prevalencia chronickej depresie (%) populácie | C33: Eurostat | D33: SK | E33: - | F33: - | G33: - | H33: 4.2 | I33: - | J33: -
D34: V3 | E34: - | F34: - | G34: - | H34: 4.3 | I34: - | J34: -
D35: EÚ28 | E35: - | F35: - | G35: - | H35: 7.5 | I35: - | J35: -
D36: EÚ15 | E36: - | F36: - | G36: - | H36: 8.5 | I36: - | J36: -
B37: Dojčenská úmrtnosť na 1 000 živonarodených | C37: OECD | D37: SK | E37: 4.9 | F37: 5.8 | G37: 5.5 | H37: 5.8 | I37: 5.1 | J37: 5.4
D38: V3 | E38: 4.1 | F38: 4 | G38: 4 | H38: 3.7 | I38: 3.6 | J38: 3.6
D39: EÚ28 | E39: 3.7 | F39: 3.5 | G39: 3.5 | H39: 3.3 | I39: 3.3 | J39: 3.3
D40: EÚ15 | E40: 3.3 | F40: 3.2 | G40: 3.3 | H40: 3.2 | I40: 3.1 | J40: 3.2

Sheet tabuľka_27
A1: =HYPERLINK("#Zoznam!A1", "Na zoznam") -> Na zoznam | B1: Tabuľka 27: Lieky a zdravotnícke pomôcky
B2: Ukazovateľ | C2: Porovnanie | I2: Zámer | J2: Dopad na zdravie | K2: Iné prínosy
C3: Zdroj | D3: Krajiny | E3: 2013 | F3: 2014 | G3: 2015 | H3: 2016
B4: Spotreba liekov (DDD na 1 000 obyv.) | C4: OECD | D4: SK | E4: 1812.2 | F4: 1861.2 | G4: 1909.3 | H4: 1600.4 | I4: Zníženie spotreby | J4: Predchádzanie kontraindikáciám a liekovým interakciám | K4: Šetrenie zdrojov, ak zvýšenú spotrebu spôsobuje duplicitné predpisovanie
D5: V3 | E5: 1570 | F5: 1608.6 | G5: 1650.4 | H5: 1670.4
D6: EU-28 | E6: 1291.5 | F6: 1314.1 | G6: 1339.3 | H6: 1343.7
D7: EU-15 | E7: 1295.1 | F7: 1313.6 | G7: 1335.8 | H7: 1361.8
B8: Spotreba antibiotík (DDD na 1 000 obyv.) | C8: OECD | D8: SK | E8: 25.9 | F8: 24.8 | G8: 26.8 | H8: 21.6 | I8: Zníženie spotreby | J8: Zníženie rezistencie voči antibiotikám, zvýšenie šance na úspešnú liečbu | K8: -
D9: V3 | E9: 19.4 | F9: 19.3 | G9: 20.6 | H9: 19
D10: EU-28 | E10: 20.4 | F10: 20 | G10: 20.6 | H10: 19.9
D11: EU-15 | E11: 21.5 | F11: 21.3 | G11: 21.6 | H11: 21.4
B12: Podiel generík na spotrebe liekov | C12: OECD | D12: SK | E12: 69.6 | F12: 69.3 | G12: 67.6 | H12: 64.9 | I12: Rast podielu na spotrebe | J12: - | K12: Šetrenie zdrojov pacienta – zvýšenie ekonomickej dostupnosti

Sheet tabuľka_28
A1: =HYPERLINK("#Zoznam!A1", "Na zoznam") -> Na zoznam | B1: Tabuľka 28: Prehľad počtu liekov a objemu úhrad ZP podľa spôsobu stanovenia úhrad
D2: počet liekov | E2: podiel z počtu liekov | F2: úhrada, mil. eur | G2: podiel z úhrady | H2: možná úspora, mil. eur
B4: 1 | C4: zoskupenie do porovnateľnej ref. skupiny (§ 6 odsek 2 vyhlášky 435/2011) | D4: 2489 | E4: 0.57 | F4: 748 | G4: 0.68 | H4: 64
B5: 2 | C5: zoskupenie do úhradovej skupiny (§ 2 písmeno b, § 5 vyhlášky 435/2011) | D5: 836 | E5: 0.19 | F5: 137 | G5: 0.12 | H5: 0
B6: 3 | C6: zoskupenie do špecifickej skupiny (§ 8 vyhlášky 435/2011) | D6: 149 | E6: 0.03 | F6: 15 | G6: 0.01 | H6: -
B7: 4 | C7: či je liek určený na povinné očkovanie (§ 7 zákona 363/2011) | D7: 261 | E7: 0.06 | F7: 55 | G7: 0.05 | H7: -
B8: 5 | C8: či má liek predĺžené uvoľňovanie (§ 8 zákona 363/2011) | D8: 569 | E8: 0.13 | F8: 113 | G8: 0.1 | H8: -
B9: 6 | C9: či ide o kombináciu liečiv (§ 9 zákona 363/2011) | D9: 54 | E9: 0.01 | F9: 31 | G9: 0.03 | H9: -
B10: * Platí pre všetky lieky, ak nespadajú pod žiadny z bodov 2 – 6.
B11: Zdroj: kategorizácia, NCZI, výpočty ÚHP

Sheet graf_1
A1: =HYPERLINK("#Zoznam!A1", "Na zoznam") -> Na zoznam | B1: Graf 1: Odvrátiteľná úmrtnosť (na 100 000 obyvateľov)
B2: Zdroj: Eurostat, Amenable and preventable deaths of residents [hlth_cd_apr]
B3: http://ec.europa.eu/eurostat/web/lfs/data/database
C4: 2011 | D4: 2012 | E4: 2013 | F4: 2014 | G4: 2015
B5: SK | C5: 262.16 | D5: 260.56 | E5: 261.54 | F5: 242.83 | G5: 249.96
B6: V3 | C6: 227.2866667 | D6: 222.44 | E6: 215.8 | F6: 204.2033333 | G6: 205.2266667
B7: EU 28 | C7: 169.0155556 | D7: 165.3592593 | E7: 159.7755556 | F7: 152.7548148 | G7: 153.457037
B8: EU 15 | C8: 112.01 | D8: 109.526 | E8: 106.984 | F8: 101.8766667 | G8: 102.0666667
B9: aktualizované 22.11.2017
B10: štandardizovaná miera úmrtí na 100 tis obyvateľov

Sheet graf_2
A1: =HYPERLINK("#Zoznam!A1", "Na zoznam") -> Na zoznam | B1: Graf 2: Očakávaná dĺžka života žien pri narodení
B2: Zdroj: OECD - Health-Health status - Life expectancy - Females at birth
B3: http://stats.oecd.org/
C4: 2000 | D4: 2001 | E4: 2002 | F4: 2003 | G4: 2004 | H4: 2005 | I4: 2006 | J4: 2007 | K4: 2008 | L4: 2009 | M4: 2010 | N4: 2011 | O4: 2012 | P4: 2013 | Q4: 2014 | R4: 2015 | S4: 2016
B5: SK | C5: 77.5 | D5: 77.7 | E5: 77.7 | F5: 77.7 | G5: 78 | H5: 78.1 | I5: 78.4 | J5: 78.4 | K5: 79 | L5: 79.1 | M5: 79.3 | N5: 79.8 | O5: 79.9 | P5: 80.1 | Q5: 80.5 | R5: 80.2 | S5: 80.7
B6: V3 | C6: 77.56666667 | D6: 77.86666667 | E6: 78.06666667 | F6: 78.03333333 | G6: 78.5 | H6: 78.56666667 | I6: 79.13333333 | J6: 79.26666667 | K6: 79.6 | L6: 79.66666667 | M6: 80.06666667 | N6: 80.3 | O6: 80.33333333 | P6: 80.53333333 | Q6: 81.03333333 | R6: 80.73333333 | S6: 81.26666667
B7: EU28 | C7: 80.06818182 | D7: 80.31818182 | E7: 80.24347826 | F7: 80.22608696 | G7: 80.8173913 | H7: 80.8826087 | I7: 81.27826087 | J7: 81.42173913 | K7: 81.75217391 | L7: 82.00434783 | M7: 82.2826087 | N7: 82.57826087 | O7: 82.55652174 | P7: 82.77391304 | Q7: 83.19130435 | R7: 82.92608696 | S7: 83.13636364
B8: EU15 | C8: 81.17333333 | D8: 81.42666667 | E8: 81.52 | F8: 81.5 | G8: 82.18666667 | H8: 82.24666667 | I8: 82.65333333 | J8: 82.81333333 | K8: 83.02 | L8: 83.24 | M8: 83.48 | N8: 83.72666667 | O8: 83.64 | P8: 83.88666667 | Q8: 84.28666667 | R8: 83.97333333 | S8: 84.16428571
B9: OECD | C9: 80.15714286 | D9: 80.45142857 | E9: 80.44166667 | F9: 80.5 | G9: 81.00277778 | H9: 81.10555556 | I9: 81.43333333 | J9: 81.57777778 | K9: 81.86944444 | L9: 82.10277778 | M9: 82.33333333 | N9: 82.57777778 | O9: 82.6 | P9: 82.9 | Q9: 83.25 | R9: 83.075 | S9: 83.24848485
B10: Údaje sú uvedené v rokoch

Sheet graf_3
A1: =HYPERLINK("#Zoznam!A1", "Na zoznam") -> Na zoznam | B1: Graf 3: Počet lekárov (na 1 000 obyv.), 2017
B2: Zdroj: OECD - Health - Health Care resources - Physicians
B3: http://stats.oecd.org/
C4: 2000 | D4: 2015
B5: SK | C5: 3.35 | D5: 3.45
B6: V3 | C6: 2.756666667 | D6: 3.04
B7: EU-28 | C7: 2.9905 | D7: 3.638695652
B8: EU-15 | C8: 3.033333333 | D8: 3.822

Sheet graf_4
A1: =HYPERLINK("#Zoznam!A1", "Na zoznam") -> Na zoznam | B1: Graf 4: Počet lekárov podľa špecializácií (na 1 000 obyv.), 2016*
B2: Zdroj: OECD - Health - Health Care resources - Physicians by categories
B3: http://stats.oecd.org/
C4: Všeobecný | D4: Pediater | E4: Gyn. a pôr. | F4: Psychiater | G4: Chirurg | H4: Špecialista
B5: SK | C5: 0.4 | D5: 0.2 | E5: 0.2 | F5: 0.1 | G5: 0.8 | H5: 1.5
B6: V3 | C6: 0.42 | D6: 0.15 | E6: 0.14 | F6: 0.09 | G6: 0.58 | H6: 1.61
B7: EU28 | C7: 1.09 | D7: 0.19 | E7: 0.17 | F7: 0.18 | G7: 0.79 | H7: 1.91
B8: EU15 | C8: 1.24 | D8: 0.18 | E8: 0.16 | F8: 0.19 | G8: 0.8 | H8: 1.91

Sheet graf_5
A1: =HYPERLINK("#Zoznam!A1", "Na zoznam") -> Na zoznam | B1: Graf 5: Počet zdravotných sestier (na 1 000 obyv.), 2000 a 2015
B2: Zdroj: OECD - Health - Health Care resources - Practising nurses
B3: http://stats.oecd.org/
C4: 2000 | D4: 2015
B5: SK | C5: 7.44 | D5: 5.7
B6: V3 | C6: 5.95 | D6: 6.56
B7: EU-28 | C7: 7.324736842 | D7: 8.676956522
B8: EU-15 | C8: 8.089090909 | D8: 9.804

Sheet graf_6
A1: =HYPERLINK("#Zoznam!A1", "Na zoznam") -> Na zoznam | B1: Graf 6: Počet zdravotných sestier (Practising nurses, na 1 000 obyv.), 2016*
B2: Zdroj: OECD - Health - Health Care resources - Practising nurses
B3: http://stats.oecd.org/
C4: 2016
B5: BE | C5: 11.13
B6: EE | C6: 6.1
B7: DE | C7: 12.85
B8: HU | C8: 6.44
B9: IT | C9: 5.57
B10: LV | C10: 4.64
B11: LT | C11: 7.7
B12: NL | C12: 10.58
B13: PL | C13: 5.16
B14: SK | C14: 5.75
B15: SI | C15: 9.65
B16: ES | C16: 5.51
B17: UK | C17: 7.88
B18: Priemer EU* | C18: 7.77
B19: * Priemer krajín EÚ s porovnateľným vykazovaním počtu zdravotných sestier

Sheet graf_7
A1: =HYPERLINK("#Zoznam!A1", "Na zoznam") -> Na zoznam | B1: Graf 7: Veková štruktúra, lekári a sestry, 2016
B2: Zdroj: NCZI
C3: lekár | D3: sestra
B4: 0-19 | C4: 0 | D4: 0
B5: 20-24 | C5: 72 | D5: 776
B6: 25-29 | C6: 2021 | D6: 1467
B7: 30-34 | C7: 2171 | D7: 2438
B8: 35-39 | C8: 1637 | D8: 4131
B9: 40-44 | C9: 2225 | D9: 6410
B10: 45-49 | C10: 2277 | D10: 4691
B11: 50-54 | C11: 1681 | D11: 4457
B12: 55-59 | C12: 1901 | D12: 4310
B13: 60-64 | C13: 2702 | D13: 1856
B14: 65+ | C14: 2177 | D14: 647

Sheet graf_8
A1: =HYPERLINK("#Zoznam!A1", "Na zoznam") -> Na zoznam | B1: Graf 8: Veková štruktúra, lekári podľa špecializácií (%), 2016
B2: Zdroj: Slovenská lekárska komora
C3: 20-30 | D3: 30-40 | E3: 40-50 | F3: 50-60 | G3: 60+
B4: Všeobecný | C4: 0.3115264798 | D4: 8.36671117 | E4: 21.05028927 | F4: 27.32532265 | G4: 42.94615042
B5: Pediater | C5: 0.7434944238 | D5: 10.53283767 | E5: 21.62329616 | F5: 25.71251549 | G5: 41.38785626
B6: Špecialista | C6: 0.5672155107 | D6: 16.77067193 | E6: 28.68210312 | F6: 23.66234039 | G6: 30.31766905
B7: Chirurg | C7: 0 | D7: 14.49275362 | E7: 28.98550725 | F7: 33.33333333 | G7: 23.1884058
B8: Psychiater | C8: 0.3067484663 | D8: 19.32515337 | E8: 40.03067485 | F8: 13.03680982 | G8: 27.3006135

Sheet graf_9
A1: =HYPERLINK("#Zoznam!A1", "Na zoznam") -> Na zoznam | B1: Graf 9: Verejné výdavky na lieky* na osobu, bežné ceny, EUR, 2016
B2: Zdroj: OECD - Health - Health expenditure and financing - Pharmaceuticals and other
B3: https://stats.oecd.org/
D4: 2016
B5: Switzerland | C5: =VLOOKUP(B5,[1]slovník!$A$14:$D$51,4,0) -> CH | D5: 674.1908257
B6: Germany | C6: =VLOOKUP(B6,[1]slovník!$A$14:$D$51,4,0) -> DE | D6: 511.241
B7: Luxembourg | C7: =VLOOKUP(B7,[1]slovník!$A$14:$D$51,4,0) -> LU | D7: 425.212
B8: Ireland | C8: =VLOOKUP(B8,[1]slovník!$A$14:$D$51,4,0) -> IE | D8: 423.845
B9: France | C9: =VLOOKUP(B9,[1]slovník!$A$14:$D$51,4,0) -> FR | D9: 405.512
B10: Belgium | C10: =VLOOKUP(B10,[1]slovník!$A$14:$D$51,4,0) -> BE | D10: 384.539
B11: Austria | C11: =VLOOKUP(B11,[1]slovník!$A$14:$D$51,4,0) -> AT | D11: 342.605
B12: Norway | C12: =VLOOKUP(B12,[1]slovník!$A$14:$D$51,4,0) -> NO | D12: 288.8930147
B13: United Kingdom | C13: =VLOOKUP(B13,[1]slovník!$A$14:$D$51,4,0) -> UK | D13: 284.3504274
B14: Italy | C14: =VLOOKUP(B14,[1]slovník!$A$14:$D$51,4,0) -> IT | D14: 275.123
B15: EU15 | C15: EU15 | D15: 274.2915464
B16: Sweden | C16: =VLOOKUP(B16,[1]slovník!$A$14:$D$51,4,0) -> SE | D16: 262.7453797
B17: Canada | C17: CA | D17: 257.6207367
B18: Finland | C18: =VLOOKUP(B18,[1]slovník!$A$14:$D$51,4,0) -> FI | D18: 256.947
B19: OECD | C19: OECD | D19: 253.60777
B20: EU28 | C20: EU28 | D20: 235.3978693
B21: Spain | C21: =VLOOKUP(B21,[1]slovník!$A$14:$D$51,4,0) -> ES | D21: 233.905
B22: Netherlands | C22: =VLOOKUP(B22,[1]slovník!$A$14:$D$51,4,0) -> NL | D22: 223.91
B23: Korea | C23: KR | D23: 212.5542194
B24: Slovak Republic | C24: SK | D24: 197.82
B25: Greece | C25: =VLOOKUP(B25,[1]slovník!$A$14:$D$51,4,0) -> EL | D25: 188.595
B26: Slovenia | C26: =VLOOKUP(B26,[1]slovník!$A$14:$D$51,4,0) -> SI | D26: 151.815
B27: Denmark | C27: =VLOOKUP(B27,[1]slovník!$A$14:$D$51,4,0) -> DK | D27: 144.7062458
B28: Portugal | C28: =VLOOKUP(B28,[1]slovník!$A$14:$D$51,4,0) -> PT | D28: 132.982
B29: Hungary | C29: =VLOOKUP(B29,[1]slovník!$A$14:$D$51,4,0) -> HU | D29: 124.4551917
B30: Czech Republic | C30: =VLOOKUP(B30,[1]slovník!$A$14:$D$51,4,0) -> CZ | D30: 122.5062884
B31: Estonia | C31: =VLOOKUP(B31,[1]slovník!$A$14:$D$51,4,0) -> EE | D31: 110.111
B32: V3 | C32: V3 | D32: 99.32798057
B33: Lithuania | C33: =VLOOKUP(B33,[1]slovník!$A$14:$D$51,4,0) -> LT | D33: 81.166
B34: Latvia | C34: =VLOOKUP(B34,[1]slovník!$A$14:$D$51,4,0) -> LV | D34: 79.037
B35: Poland | C35: =VLOOKUP(B35,[1]slovník!$A$14:$D$51,4,0) -> PL | D35: 51.02246161
B36: * Výdavky na lieky zahŕňajú aj iné tovary krátkodobej spotreby, napr. obväzy a striekačky, ktoré sú na Slovensku považované za zdravotnícke pomôcky. Väčšina pomôcok spotrebovaných na Slovensku je však v databáze OECD vykazovaná v samostatnej kategórii.

Sheet graf_10
A1: =HYPERLINK("#Zoznam!A1", "Na zoznam") -> Na zoznam | B1: Graf 10: Celková spotreba liekov (v denných dávkach, na 1 000 obyv.)
B2: Zdroj: OECD - Health - Pharmaceutical market - Pharmaceutical consumption
B3: https://stats.oecd.org/
C4: 2000 | D4: 2001 | E4: 2002 | F4: 2003 | G4: 2004 | H4: 2005 | I4: 2006 | J4: 2007 | K4: 2008 | L4: 2009 | M4: 2010 | N4: 2011 | O4: 2012 | P4: 2013 | Q4: 2014 | R4: 2015 | S4: 2016 | T4: 2017*
B5: SK | C5: 1112.7 | D5: 1197.8 | E5: 1271.9 | F5: 1247.8 | G5: 1243.7 | H5: 1349.9 | I5: 1353.1 | J5: 1482.8 | K5: 1564.9 | L5: 1624.5 | M5: 1675.6 | N5: 1684.1 | O5: 1597.8 | P5: 1812.2 | Q5: 1861.2 | R5: 1909.3 | S5: 1600.4 | T5: 1552.388
B6: CZ | C6: 1092.5 | D6: 1180 | E6: 1213.2 | F6: 1266.6 | G6: 1278 | H6: 1435.4 | I6: 1322.9 | J6: 1522 | K6: 1430.9 | L6: 1484.5 | M6: 1550.1 | N6: 1554 | O6: 1561.3 | P6: 1570 | Q6: 1608.6 | R6: 1650.4 | S6: 1670.4 | T6: 1694.774285
B7: OECD** | C7: 989.15 | D7: 1036.466667 | E7: 1082.166667 | F7: 1126.616667 | G7: 1179.016667 | H7: 1229.833333 | I7: 1239.95 | J7: 1308.333333 | K7: 1244.885714 | L7: 1273.185714 | M7: 1296.742857 | N7: 1288.475 | O7: 1311.4875 | P7: 1337.55 | Q7: 1363.5875 | R7: 1394.4875 | S7: 1433.285714 | T7: 1464.153721
B8: EU** | C8: 967.925 | D8: 1011.475 | E8: 1052.925 | F8: 1098.925 | G8: 1153.55 | H8: 1213.45 | I8: 1212.125 | J8: 1294.65 | K8: 1310.9 | L8: 1328.5 | M8: 1368.25 | N8: 1328.54 | O8: 1348.28 | P8: 1360.72 | Q8: 1379.28 | R8: 1421.2 | S8: 1431.175 | T8: 1452.681613
B9: * - vývoj v roku 2017 je odhad, ** - krajiny s porovnateľným spôsobom vykazovania spotreby liekov

Sheet graf_11
A1: =HYPERLINK("#Zoznam!A1", "Na zoznam") -> Na zoznam | B1: Graf 11: Porovnanie zahraničnej a slovenskej spotreby liekov v jednotlivých ATC skupinách, 2016
B2: Zdroj: NCZI
C3: SK | D3: CZ | E3: EU* | F3: OECD* | G3: pomer SK/CZ (pravá os) | H3: pomer SK/EU* (pravá os)
B4: A Tráviaci trakt | C4: 271 | D4: 283.9 | E4: 249.85 | F4: 278.4428571 | G4: 0.9545614653 | H4: 1.08465079
B5: B Krv a krvotvor.org. | C5: 289 | D5: 198.1 | E5: 187.4 | F5: 166.4285714 | G5: 1.458859162 | H5: 1.542155816
B6: C Kardiovask. sys. | C6: 551.7 | D6: 612.6 | E6: 502.3 | F6: 434.1 | G6: 0.9005876592 | H6: 1.098347601
B7: G Urogen.t. a pohl. horm. | C7: 59.6 | D7: 101.9 | E7: 75.925 | F7: 81.52857143 | G7: 0.5848871443 | H7: 0.7849851827
B8: H Hormóny okrem pohl. | C8: 38.5 | D8: 53.6 | E8: 41.375 | F8: 42.72857143 | G8: 0.7182835821 | H8: 0.9305135952
B9: J Antiinfektíva | C9: 23.3 | D9: 20.7 | E9: 21.625 | F9: 25.24285714 | G9: 1.125603865 | H9: 1.077456647
B10: M Muskuloskel. sys. | C10: 71.5 | D10: 82.8 | E10: 68.775 | F10: 71.9 | G10: 0.86352657 | H10: 1.039621956
B11: N Nervový sys. | C11: 163.8 | D11: 169.9 | E11: 168.5 | F11: 201.4428571 | G11: 0.9640965274 | H11: 0.9721068249
B12: R Respiračný sys. | C12: 132 | D12: 146.9 | E12: 115.425 | F12: 131.4714286 | G12: 0.8985704561 | H12: 1.14359974
B13: * - krajiny s porovnateľným spôsobom vykazovania spotreby liekov

Sheet graf_12
A1: =HYPERLINK("#Zoznam!A1", "Na zoznam") -> Na zoznam | B1: Graf 12: Spotreba antibiotík (definované denné dávky na 1 000 obyv./deň)
B2: Zdroj: OECD - Health - Pharmaceutical market - Pharmaceutical consumption
B3: https://stats.oecd.org/
C4: 2000 | D4: 2001 | E4: 2002 | F4: 2003 | G4: 2004 | H4: 2005 | I4: 2006 | J4: 2007 | K4: 2008 | L4: 2009 | M4: 2010 | N4: 2011 | O4: 2012 | P4: 2013 | Q4: 2014 | R4: 2015 | S4: 2016
B5: SK | C5: 27.6 | D5: 29.1 | E5: 26.7 | F5: 27.6 | G5: 22.5 | H5: 25.1 | I5: 22.5 | J5: 24.8 | K5: 23.4 | L5: 26.3 | M5: 24.5 | N5: 23.7 | O5: 21.9 | P5: 25.9 | Q5: 24.8 | R5: 26.8 | S5: 21.6
B6: V3 | C6: 21.23333333 | D6: 22.23333333 | E6: 20.26666667 | F6: 20.8 | G6: 18.66666667 | H6: 20.36666667 | I6: 18.6 | J6: 18.7 | K6: 18.2 | L6: 21.13333333 | M6: 18.46666667 | N6: 18.8 | O6: 18.53333333 | P6: 19.43333333 | Q6: 19.3 | R6: 20.63333333 | S6: 19
B7: EU28 | C7: 20.77894737 | D7: 20.90526316 | E7: 19.855 | F7: 20.55555556 | G7: 19.085 | H7: 20.155 | I7: 19.92 | J7: 20.86190476 | K7: 20.84761905 | L7: 20.75714286 | M7: 19.95454545 | N7: 20.34782609 | O7: 19.92608696 | P7: 20.37391304 | Q7: 19.97391304 | R7: 20.59130435 | S7: 19.9
B8: EU15 | C8: 20.71538462 | D8: 20.68461538 | E8: 20.62307692 | F8: 20.77692308 | G8: 20.06923077 | H8: 21.10769231 | I8: 21.23076923 | J8: 22.33076923 | K8: 22.62307692 | L8: 22.19230769 | M8: 21.59285714 | N8: 21.84666667 | O8: 21.48 | P8: 21.52666667 | Q8: 21.26666667 | R8: 21.64666667 | S8: 21.42142857

Sheet graf_13
A1: =HYPERLINK("#Zoznam!A1", "Na zoznam") -> Na zoznam | B1: Graf 13: Spotreba generík (podiel generík na celkovej spotrebe liekov uhrádzaných z VZP, %)
B2: Zdroj: OECD - Health - Pharmaceutical market - Pharmaceutical consumption
B3: https://stats.oecd.org/
C4: 2000 | D4: 2001 | E4: 2002 | F4: 2003 | G4: 2004 | H4: 2005 | I4: 2006 | J4: 2007 | K4: 2008 | L4: 2009 | M4: 2010 | N4: 2011 | O4: 2012 | P4: 2013 | Q4: 2014 | R4: 2015 | S4: 2016
B5: SK | C5: 79.6 | D5: 77.1 | E5: 75.2 | F5: 74.5 | G5: 75.4 | H5: 75 | I5: 73.7 | J5: 72.5 | K5: 69.2 | L5: 68.2 | M5: 68 | N5: 68.1 | O5: 68.9 | P5: 69.6 | Q5: 69.3 | R5: 67.6 | S5: 64.9
B6: EU28 | C6: 34.44285714 | D6: 35.48571429 | E6: 33.075 | F6: 31.58 | G6: 31.01818182 | H6: 34.00909091 | I6: 35.75454545 | J6: 37.375 | K6: 34.91428571 | L6: 36.42857143 | M6: 38.59285714 | N6: 40.34285714 | O6: 41.69333333 | P6: 44.12666667 | Q6: 46.72142857 | R6: 47.9 | S6: 49.08333333
B7: EU15 | C7: 26.91666667 | D7: 28.55 | E7: 27.05714286 | F7: 26.81111111 | G7: 26.58 | H7: 29.91 | I7: 31.96 | J7: 34.18181818 | K7: 32.27692308 | L7: 33.98461538 | M7: 36.33076923 | N7: 38.20769231 | O7: 39.75 | P7: 42.30714286 | Q7: 44.98461538 | R7: 46.38461538 | S7: 47.64545455
B8: OECD | C8: 30.45555556 | D8: 31.51111111 | E8: 30.16 | F8: 29.65833333 | G8: 29.56923077 | H8: 32.53076923 | I8: 34.5 | J8: 36.03571429 | K8: 36.83529412 | L8: 38.27058824 | M8: 40.35294118 | N8: 42 | O8: 43.19444444 | P8: 45.46666667 | Q8: 47.81176471 | R8: 48.95882353 | S8: 50.22

Sheet graf_14
A1: =HYPERLINK("#Zoznam!A1", "Na zoznam") -> Na zoznam | B1: Graf 14: Výdavky na generiká (podiel generík na celkových výdavkoch na lieky uhrádzaných z VZP, %)
B2: Zdroj: OECD - Health - Pharmaceutical market - Generic market
B3: https://stats.oecd.org/
C4: 2016
B5: Rakúsko | C5: 48.4
B6: Belgicko | C6: 14.7
B7: Kanada | C7: 30.9
B8: Nemecko | C8: 34.1
B9: Írsko | C9: 15.6
B10: Taliansko | C10: 7.9
B11: Luxemburgsko | C11: 5.6
B12: Holandsko | C12: 16.8
B13: Nový Zéland | C13: 31
B14: Portugalsko | C14: 24.6
B15: Slovensko | C15: 27.2
B16: Španielsko | C16: 22.5
B17: Švajčiarsko | C17: 19.3
B18: Turecko | C18: 32.2
B19: Veľká Británia | C19: 37.6

Sheet graf_15
A1: =HYPERLINK("#Zoznam!A1", "Na zoznam") -> Na zoznam | B1: Graf 15: Rozptyl medzi 65 nemocnicami v kvalite zdravotnej starostlivosti
B2: Zdroj: Štúdia k stratifikácii nemocníc MZ
B3: Graf bol prevzatý bez podkladových dát

Sheet graf_16
A1: =HYPERLINK("#Zoznam!A1", "Na zoznam") -> Na zoznam | B1: Graf 16: Počet čakajúcich na plánované výkony k 31.12.
B2: Zdroj: výročné správy UDZS
C3: 2013 | D3: 2014 | E3: 2015 | F3: 2016 | G3: 2017
B4: Choroby svalovej a kostrovej sústavy a spojivového tkaniva vyžadujúce implantáciu zdravotníckej pomôcky | C4: 5300 | D4: 4455 | E4: 3343 | F4: 2720 | G4: 2648
B5: Choroby obehovej sústavy | C5: 920 | D5: 433 | E5: 243 | F5: 388 | G5: 455
B6: Choroby oka a jeho adnexov vyžadujúce implantáciu zdravotníckej pomôck | C6: 1587 | D6: 686 | E6: 255 | F6: 23 | G6: 88

Sheet graf_17
A1: =HYPERLINK("#Zoznam!A1", "Na zoznam") -> Na zoznam | B1: Graf 17: Podiel populácie s časom dojazdu do 30 minút do najbližšej nemocnice
B2: Zdroj: Štúdia k stratifikácii nemocníc MZ
B3: Nemecko | C3: 0.99
B4: Slovensko | C4: 0.91
B5: Rakúsko | C5: 0.9
B6: Dánsko | C6: 0.82
B7: Švédsko | C7: 0.78
B8: Francúzsko | C8: 0.75

Sheet graf_18
A1: =HYPERLINK("#Zoznam!A1", "Na zoznam") -> Na zoznam | B1: Graf 18: Faktory ovplyvňujúce nárast záväzkov podľa účtovných závierok 13 najväčších nemocníc (2017)
B2: Zdroj: účtovné závierky MF SR
C3: Strata | D3: Nárast záväzkov | E3: . | F3: HV + nárast aktív | G3: Nárast pasív | H3: Neprevádzkový HV | I3: Nárast aktív
B4: Strata | C4: 76.71009475 | F4: 76.71009475
B5: Záväzky | D5: 121.1147531 | G5: 121.1147531
B6: Neprevádzkové náklady | F6: 17.9985798 | H6: 17.9985798
B7: Aktíva - Investície, pohľadávky, zásoby, časové rozlíšenie | F7: 39.06293079 | I7: 39.06293079
B8: Pasíva - úvery, rezervy, časové rozlíšenie | G8: 10.24289955
B9: Pasíva - rezervný fond | G9: 2.41364542

Sheet graf_19
A1: =HYPERLINK("#Zoznam!A1", "Na zoznam") -> Na zoznam | B1: Graf 19: Vývoj straty a nárastu záväzkov 13 najväčších nemocníc MZ
B2: Zdroj: Ministerstvo Zdravotníctva
C3: 2013 | D3: 2014 | E3: 2015 | F3: 2016 | G3: 2017
B4: strata | C4: 20 | D4: 51 | E4: 64 | F4: 81 | G4: 77
B5: nárast záväzkov | C5: 112 | D5: 68 | E5: 109 | F5: 101 | G5: 118

Sheet graf_20
A1: =HYPERLINK("#Zoznam!A1", "Na zoznam") -> Na zoznam | B1: Graf 20: Percento zaočkovaných proti chrípke, populácia 65+
B2: Zdroj: OECD - Health - Health Care Utilization - Immunisation
B3: http://stats.oecd.org/
C4: 2013 | D4: 2014 | E4: 2015 | F4: 2016
B5: SK | C5: 15.6 | D5: 14.1 | E5: 13.8 | F5: 13.3
B6: V3 | C6: 40.12631579 | D6: 36.15 | E6: 37.68888889 | F6: 35.2125
B7: EU-28 | C7: 52.56923077 | D7: 49.72142857 | E7: 50.75 | F7: 49.07
B8: EU-15 | C8: 46.31111111 | D8: 43.25625 | E8: 44.40740741 | F8: 40.95416667

Sheet graf_21
A1: =HYPERLINK("#Zoznam!A1", "Na zoznam") -> Na zoznam | B1: Graf 21: Percento žien (50-79), ktoré absolvovali skríning na rakovinu prsníka
B2: Zdroj: OECD - Health - Health Care Utilization - Screening
B3: http://stats.oecd.org/
C4: 2013 | D4: 2014 | E4: 2015 | F4: 2016 | G4: 2017
B5: SK | C5: 31.6 | D5: 30.5 | E5: 30.1 | F5: 30.4 | G5: 30.8
B6: V3 | C6: 50.6 | D6: 51.45 | E6: 51.9 | F6: 51.7
B7: EU-28 | C7: 58.675 | D7: 60.68235294 | E7: 58.48125 | F7: 58.87857143 | G7: 58.375
B8: EU-15 | C8: 66.5 | D8: 68.54 | E8: 65.51111111 | F8: 69.05714286 | G8: 59.5

Sheet graf_22
A1: =HYPERLINK("#Zoznam!A1", "Na zoznam") -> Na zoznam | B1: Graf 22: Percento žien, ktoré absolvovali preventívnu prehliadku u gynekológa (kŕčok maternice)
B2: Zdroj: OECD - Health - Health Care Utilization - Screening
B3: http://stats.oecd.org/
C4: 2013 | D4: 2014 | E4: 2015 | F4: 2016 | G4: 2017
B5: SK | C5: 47.5 | D5: 47.2 | E5: 46.9 | F5: 48.3 | G5: 46
B6: V3 | C6: 44.55 | D6: 43.9 | E6: 44.2 | F6: 44.35
B7: EU-28 | C7: 57.11333333 | D7: 58.34 | E7: 58.41333333 | F7: 58.1 | G7: 62.13333333
B8: EU-15 | C8: 65.8375 | D8: 68.075 | E8: 68.8 | F8: 69.37142857 | G8: 75.4

Sheet graf_23
A1: =HYPERLINK("#Zoznam!A1", "Na zoznam") -> Na zoznam | B1: Graf 23: Podiel jednodňovej chirurgie na celkovom počte operácií
B2: Zdroj: výkazy NCZI
C3: 2015 | D3: 2016 | E3: 2017
B4: hospitalizácie | C4: 0.5660519877 | D4: 0.5667991929 | E4: 0.5628588367
B5: 1-dňová chirurgia | C5: 0.4339480123 | D5: 0.4332008071 | E5: 0.4371411633

Sheet graf_24
A1: =HYPERLINK("#Zoznam!A1", "Na zoznam") -> Na zoznam | B1: Graf 24: Podiel návštev v ambulanciách špecializovanej starostlivosti zo všetkých (%)
B2: Zdroj: výkazy NCZI
C3: 2013 | D3: 2014 | E3: 2015 | F3: 2016
B4: VAS | C4: 0.4925368246 | D4: 0.4979634328 | E4: 0.4983015779 | F4: 0.5041883955
B5: ŠAS | C5: 0.5074631754 | D5: 0.5020365672 | E5: 0.5016984221 | F5: 0.4958116045

Sheet graf_25
A1: =HYPERLINK("#Zoznam!A1", "Na zoznam") -> Na zoznam | B1: Graf 25: Počet CT strojov (na 1 mil. obyv.)
B2: Zdroj: OECD - Health - Health Care Resources - Medical Technology
B3: http://stats.oecd.org/
C4: 2001 | D4: 2002 | E4: 2003 | F4: 2004 | G4: 2005 | H4: 2006 | I4: 2007 | J4: 2008 | K4: 2009 | L4: 2010 | M4: 2011 | N4: 2012 | O4: 2013 | P4: 2014 | Q4: 2015 | R4: 2016
B5: SK | E5: 9.12 | F5: 10.24 | G5: 11.35 | H5: 12.29 | I5: 13.77 | J5: 13.76 | K5: 13.37 | L5: 14.09 | M5: 15.01 | N5: 15.53 | O5: 15.33 | P5: 17.34 | Q5: 17.88 | R5: 17.31
B6: V3 | F6: 12.65 | G6: 12.34 | H6: 13.08 | I6: 12.92 | J6: 13.39 | K6: 14.17 | L6: 14.51 | M6: 14.185 | N6: 15.215 | O6: 16.055 | P6: 15.365 | Q6: 16.645 | R6: 16.425
B7: EU28 | C7: 15.59571429 | D7: 16.32057143 | E7: 15.83194444 | F7: 15.60490909 | G7: 17.48037815 | H7: 17.83067227 | I7: 18.67722689 | J7: 19.55783333 | K7: 19.54193277 | L7: 21.25263889 | M7: 21.60123839 | N7: 22.44739938 | O7: 23.42108359 | P7: 23.78188854 | Q7: 23.89617647 | R7: 23.87769737
B8: EU15 | C8: 17.38083333 | D8: 18.01166667 | E8: 18.01666667 | F8: 18.34733333 | G8: 21.11568182 | H8: 21.30568182 | I8: 21.95272727 | J8: 22.21155556 | K8: 21.67125 | L8: 23.29533333 | M8: 24.03433333 | N8: 24.66883333 | O8: 25.76433333 | P8: 26.1805 | Q8: 26.20569231 | R8: 26.18166667

Sheet graf_26
A1: =HYPERLINK("#Zoznam!A1", "Na zoznam") -> Na zoznam | B1: Graf 26: Počet CT vyšetrení (na 1 000 obyv.)
B2: Zdroj: OECD - Health - Health Care Utilisation - Computed Tomography exams
B3: http://stats.oecd.org/
C4: 2000 | D4: 2001 | E4: 2002 | F4: 2003 | G4: 2004 | H4: 2005 | I4: 2006 | J4: 2007 | K4: 2008 | L4: 2009 | M4: 2010 | N4: 2011 | O4: 2012 | P4: 2013 | Q4: 2014 | R4: 2015 | S4: 2016
B5: SK | C5: 32 | D5: 36.7 | E5: 37.7 | F5: 41.7 | G5: 46.5 | H5: 46.2 | I5: 57.1 | J5: 69.2 | K5: 82.9 | L5: 85.9 | M5: 89.8 | N5: 99.1 | O5: 107.6 | P5: 122.8 | Q5: 134.8 | R5: 156.2 | S5: 162.3
B6: V3 | G6: 63.05 | H6: 66.45 | I6: 65.9 | J6: 67.05 | K6: 76 | L6: 80.65 | M6: 81.55 | N6: 85.1 | O6: 83.73333333 | P6: 87.86666667 | Q6: 94.9 | R6: 101.1 | S6: 110.8
B7: EU28 | C7: 62.46666667 | D7: 67.46666667 | E7: 86.925 | F7: 83.28 | G7: 86.16666667 | H7: 83.3 | I7: 86.3 | J7: 93.07 | K7: 116.7416667 | L7: 103.7 | M7: 99.85384615 | N7: 105.1307692 | O7: 115.5714286 | P7: 116.0266667 | Q7: 119.4625 | R7: 125.0529412 | S7: 129.175
B8: EU15 | C8: 115.2 | D8: 118.1 | E8: 127.5 | F8: 104.8333333 | G8: 114.8 | H8: 113.65 | I8: 119.7 | J8: 128.86 | K8: 153.2857143 | L8: 132.4166667 | M8: 116.875 | N8: 121.8125 | O8: 141.15 | P8: 134.6333333 | Q8: 134.61 | R8: 135.73 | S8: 137.9111111

Sheet graf_27
A1: =HYPERLINK("#Zoznam!A1", "Na zoznam") -> Na zoznam | B1: Graf 27: Počet MR strojov (na 1 mil. obyv.)
B2: Zdroj: OECD - Health - Health Care Resources - Medical Technology
B3: http://stats.oecd.org/
C4: 2001 | D4: 2002 | E4: 2003 | F4: 2004 | G4: 2005 | H4: 2006 | I4: 2007 | J4: 2008 | K4: 2009 | L4: 2010 | M4: 2011 | N4: 2012 | O4: 2013 | P4: 2014 | Q4: 2015 | R4: 2016
B5: SK | C5: 1.3 | D5: 2.05 | E5: 2.05 | F5: 3.72 | G5: 4.28 | H5: 4.47 | I5: 5.77 | J5: 6.13 | K5: 6.13 | L5: 6.86 | M5: 7.04 | N5: 6.29 | O5: 6.65 | P5: 8.3 | Q5: 8.85 | R5: 9.02
B6: V3 | C6: 1.91 | D6: 1.786666667 | E6: 2.013333333 | F6: 2.44 | G6: 2.576666667 | H6: 2.776666667 | I6: 3.283333333 | J6: 3.58 | K6: 4.076666667 | L6: 4.67 | M6: 4.9 | N6: 5.086666667 | O6: 5.743333333 | P6: 5.716666667 | Q6: 6.51 | R6: 6.786666667
B7: EU28 | C7: 5.817272727 | D7: 6.379230769 | E7: 6.793571429 | F7: 7.478 | G7: 7.813125 | H7: 8.294210526 | I7: 9.355 | J7: 10.15263158 | K7: 11.50333333 | L7: 11.73315789 | M7: 12.47736842 | N7: 12.83526316 | O7: 13.25684211 | P7: 13.87157895 | Q7: 15.19 | R7: 15.18647059
B8: EU15 | C8: 8.287142857 | D8: 9.33125 | E8: 10.60375 | F8: 11.00777778 | G8: 11.84555556 | H8: 11.80363636 | I8: 13.32 | J8: 13.6 | K8: 16.151 | L8: 15.77636364 | M8: 16.55454545 | N8: 16.71545455 | O8: 16.99727273 | P8: 17.71454545 | Q8: 20.05 | R8: 19.77666667

Sheet graf_28
A1: =HYPERLINK("#Zoznam!A1", "Na zoznam") -> Na zoznam | B1: Graf 28: Počet MR vyšetrení (na 1 000 obyv.)
B2: Zdroj: OECD - Health - Health Care Utilisation - Medical Technology
B3: http://stats.oecd.org/
C4: 2000 | D4: 2001 | E4: 2002 | F4: 2003 | G4: 2004 | H4: 2005 | I4: 2006 | J4: 2007 | K4: 2008 | L4: 2009 | M4: 2010 | N4: 2011 | O4: 2012 | P4: 2013 | Q4: 2014 | R4: 2015 | S4: 2016
B5: SK | C5: 3.1 | D5: 3.5 | E5: 3.5 | F5: 5.2 | G5: 7.9 | H5: 9.8 | I5: 13.3 | J5: 20.8 | K5: 24.3 | L5: 29.9 | M5: 33.5 | N5: 34.7 | O5: 40.9 | P5: 46.3 | Q5: 51.6 | R5: 56.8 | S5: 61.4
B6: V3 | G6: 16.5 | H6: 18.8 | I6: 25.3 | J6: 26.2 | K6: 29.1 | L6: 31.8 | M6: 32.65 | N6: 35.85 | O6: 33.5 | P6: 34.66666667 | Q6: 36.3 | R6: 38.03333333 | S6: 40.7
B7: EU28 | C7: 13.1 | D7: 17.5 | E7: 20.6 | F7: 21.12 | G7: 22.77142857 | H7: 30.7625 | I7: 31.28181818 | J7: 34.82727273 | K7: 43.63076923 | L7: 44.45833333 | M7: 47.53571429 | N7: 51.78571429 | O7: 54.01333333 | P7: 57.44375 | Q7: 60.91764706 | R7: 63.59444444 | S7: 61.84117647
B8: EU15 | C8: 23.1 | D8: 31.5 | E8: 29.15 | F8: 31.96666667 | G8: 40.33333333 | H8: 50.075 | I8: 50.68 | J8: 55.06 | K8: 62.75714286 | L8: 64.56666667 | M8: 63.2 | N8: 66.6875 | O8: 72.4375 | P8: 74.11111111 | Q8: 76.37 | R8: 79.81 | S8: 74.48888889

Sheet graf_29
A1: =HYPERLINK("#Zoznam!A1", "Na zoznam") -> Na zoznam | B1: Graf 29: Nárasty počtu vyšetrení na CT a MR v rokoch 2016 – 2018
B2: Zdroj: Ministerstvo Zdravotníctva
C3: 2016 | D3: 2017 | E3: 2018
B4: CT | C4: 993865 | D4: 992912 | E4: 1028576
B5: MR | C5: 348637 | D5: 365736 | E5: 398980
B6: CT % zmena | D6: 0.049045282 | E6: 0.090896166
B7: MR % zmena | D7: -0.000958883 | E7: 0.035918591

Sheet graf_30
A1: =HYPERLINK("#Zoznam!A1", "Na zoznam") -> Na zoznam | B1: Graf 30: Počet PET strojov (na 1 mil. obyv.)
B2: Zdroj: OECD - Health - Health Care Utilisation - Medical Technology
B3: http://stats.oecd.org/
C4: 2001 | D4: 2002 | E4: 2003 | F4: 2004 | G4: 2005 | H4: 2006 | I4: 2007 | J4: 2008 | K4: 2009 | L4: 2010 | M4: 2011 | N4: 2012 | O4: 2013 | P4: 2014 | Q4: 2015 | R4: 2016
B5: SK | C5: 0.19 | D5: 0.19 | E5: 0.19 | F5: 0.19 | G5: 0.56 | H5: 0.56 | I5: 0.56 | J5: 0.56 | K5: 0.56 | L5: 0.56 | M5: 0.93 | N5: 0.92 | O5: 1.11 | P5: 1.29 | Q5: 1.47 | R5: 1.47
B6: V3 | C6: 0.1 | D6: 0.1 | E6: 0.195 | F6: 0.295 | G6: 0.495 | H6: 0.545 | I6: 0.545 | J6: 0.56 | K6: 0.4633333333 | L6: 0.4966666667 | M6: 0.5266666667 | N6: 0.5366666667 | O6: 0.59 | P6: 0.66 | Q6: 0.7433333333 | R6: 0.9333333333
B7: EU28 | C7: 0.2511111111 | D7: 0.2588888889 | E7: 0.5677777778 | F7: 0.7108333333 | G7: 0.8726666667 | H7: 0.9692307692 | I7: 1.154 | J7: 1.244705882 | K7: 1.359411765 | L7: 1.09 | M7: 1.468333333 | N7: 1.354117647 | O7: 1.664444444 | P7: 1.745555556 | Q7: 1.868333333 | R7: 1.95
B8: EU15 | C8: 0.4675 | D8: 0.485 | E8: 1.1325 | F8: 1.208333333 | G8: 1.38 | H8: 1.618333333 | I8: 1.70875 | J8: 1.825555556 | K8: 2.075555556 | L8: 1.555555556 | M8: 2.069 | N8: 1.88 | O8: 2.349 | P8: 2.422 | Q8: 2.599 | R8: 2.716666667

Sheet graf_31
A1: =HYPERLINK("#Zoznam!A1", "Na zoznam") -> Na zoznam | B1: Graf 31: Počet PET vyšetrení (na 1 000 obyv.)
B2: Zdroj: OECD - Health - Health Care Utilisation - Medical Technology
B3: http://stats.oecd.org/
C4: 2001 | D4: 2002 | E4: 2003 | F4: 2004 | G4: 2005 | H4: 2006 | I4: 2007 | J4: 2008 | K4: 2009 | L4: 2010 | M4: 2011 | N4: 2012 | O4: 2013 | P4: 2014 | Q4: 2015 | R4: 2016
B5: SK | K5: 0.7 | L5: 0.7 | M5: 0.7 | N5: 1 | O5: 1.2 | P5: 1.5 | Q5: 1.6 | R5: 1.9
B6: V3 | G6: 0.1 | H6: 0.95 | I6: 1.2 | J6: 1.3 | K6: 1.45 | L6: 1.8 | M6: 2.2 | N6: 1.8 | O6: 1.866666667 | P6: 1.933333333 | Q6: 2.133333333 | R6: 2.433333333
B7: EU28 | C7: 2.5 | D7: 1.75 | E7: 1.6 | F7: 1.7 | G7: 1.975 | H7: 1.866666667 | I7: 2.116666667 | J7: 2.228571429 | K7: 2.155555556 | L7: 2.163636364 | M7: 2.418181818 | N7: 2.358333333 | O7: 2.569230769 | P7: 2.885714286 | Q7: 2.785714286 | R7: 2.873333333
B8: EU15 | C8: 2.5 | D8: 1.75 | E8: 1.6 | F8: 2.233333333 | G8: 2.6 | H8: 3.1 | I8: 3.433333333 | J8: 3.25 | K8: 3.16 | L8: 2.785714286 | M8: 3.071428571 | N8: 3.128571429 | O8: 3.3 | P8: 3.655555556 | Q8: 3.725 | R8: 4.0875

Sheet graf_32
A1: =HYPERLINK("#Zoznam!A1", "Na zoznam") -> Na zoznam | B1: Graf 32: Úmrtnosť na infarkt myokardu do 30 dní od hospitalizácie (na 100 000 obyv., vo veku 45+)
B2: Zdroj: OECD - Health - Health Care Quality Indicators - Acute Care
B3: http://stats.oecd.org/
C4: 2000 | D4: 2001 | E4: 2002 | F4: 2003 | G4: 2004 | H4: 2005 | I4: 2006 | J4: 2007 | K4: 2008 | L4: 2009 | M4: 2010 | N4: 2011 | O4: 2012 | P4: 2013 | Q4: 2014 | R4: 2015
B5: SK | J5: 11.8 | L5: 9 | M5: 8.1 | N5: 7.6 | O5: 7.2 | P5: 6.9 | Q5: 6.2 | R5: 6.4
B6: V3 | G6: 13.2 | H6: 12.95 | I6: 11.7 | J6: 10.36666667 | K6: 10.1 | L6: 9.066666667 | M6: 5.7 | N6: 6 | O6: 4.9 | P6: 5.7 | Q6: 4.5 | R6: 5.65
B7: EU28 | C7: 13.9125 | D7: 11.7125 | E7: 11.25 | F7: 10.71111111 | G7: 10.775 | H7: 10.11538462 | I7: 9.369230769 | J7: 9.2625 | K7: 8.8625 | L7: 8.2 | M7: 7.25625 | N7: 6.972222222 | O7: 7.011764706 | P7: 7.57 | Q7: 6.9625 | R7: 7.2
B8: EU15 | C8: 13.65714286 | D8: 11.7125 | E8: 11.25 | F8: 10.71111111 | G8: 9.966666667 | H8: 9.6 | I8: 8.945454545 | J8: 8.775 | K8: 8.246153846 | L8: 7.576923077 | M8: 7.346153846 | N8: 7.05 | O8: 6.591666667 | P8: 6.923076923 | Q8: 6.25 | R8: 6.28

Sheet graf_33
A1: =HYPERLINK("#Zoznam!A1", "Na zoznam") -> Na zoznam | B1: Graf 33: Počet čakateľov na poskytovanie starostlivosti v zariadeniach sociálnych služieb
B2: Zdroj: MPSVaR
C3: 2014 | D3: 2015 | E3: 2016 | F3: 2017
B4: zariadenia pre seniorov | C4: 1717 | D4: 3427 | E4: 4541 | F4: 5525
B5: špecializované zariadenia | C5: 266 | D5: 690 | E5: 1316 | F5: 1986
B6: ostatné ZSS | C6: 2538 | D6: 1883 | E6: 1842 | F6: 2075
B7: *špecializované zariadenia – zariadenie pre pacientov so špecifickými diagnózami, napr. Alzheimerovou chorobou.

Sheet graf_34
A1: =HYPERLINK("#Zoznam!A1", "Na zoznam") -> Na zoznam | B1: Graf 34: Počet hospitalizácií, resp. pacientov podľa typu dlhodobej starostlivosti, 2017
B2: Zdroj: Ministerstvo Zdravotníctva
C3: 2016
B4: Nemocnice (DS) | C4: 36171
B5: Domy ošetrovateľskej starostlivosti | C5: 2714
B6: Hospice | C6: 1132
B7: Zariadenia sociálnych služieb | C7: 30000
B8: ADOS (DS) | C8: 8000
B9: DS – iba dlhodobá starostlivosť
B10: Zariadenia sociálnych služieb - dĺžka pobytu 365 dní v roku.

Sheet graf_35
A1: =HYPERLINK("#Zoznam!A1", "Na zoznam") -> Na zoznam | B1: Graf 35: Dĺžka pobytu a náklady na dlhodobú starostlivosť podľa typu služby, 2016
B2: Zdroj: Ministerstvo Zdravotníctva
B3: Rok 2016 | C3: osobo-mesiace | D3: priemerné mesačné náklady na osobu (pravá os)
B4: Nemocnice (DS) | C4: 22856.23333 | D4: 1650.379288
B5: Hospice | C5: 1611 | D5: 988.5679702
B6: Domy ošetrovateľskej starostlivosti | C6: 809.1 | D6: 858.0904709
B7: Zariadenia sociálnych služieb | C7: 365000 | D7: 685
B8: ADOS (DS) | D8: 115
B9: ADOS – agentúra domácej ošetrovateľskej služby. Pre ADOS nie sú dostupné údaje k osobo-mesiacom.
B10: Zariadenia sociálnych služieb - dĺlžka pobytu 365 dní v roku. Uvedené náklady iba od MPSVaR, zdroje od VÚC a súkromnými poplatkami spolu priemerne 1 100 €.

Sheet graf_36
A1: =HYPERLINK("#Zoznam!A1", "Na zoznam") -> Na zoznam | B1: Graf 36: Počet hospitalizácií s diagnózou, ktorá má byť manažovaná domácou starostlivosťou, populácia 65+
B2: NCZI - registre HOSP (Z01)
C3: 2013 | D3: 2014 | E3: 2015 | F3: 2016
B4: dehydratácia | D4: 3224 | E4: 3900 | F4: 3863
B5: dekubity | D5: 342 | E5: 339 | F5: 303

Sheet graf_37
A1: =HYPERLINK("#Zoznam!A1", "Na zoznam") -> Na zoznam | B1: Graf 37: Dojčenská úmrtnosť (počet smrtí v prvom roku života na 1 000 živonarodených)
B2: Zdroj: Register fyzických osôb, Atlas rómskych komunít 2013, Eurostat, výpočty ÚHP
B3: Rok narodenia | C3: MRK | D3: Zvysok populacie | E3: Cela populacia | F3: EU28 | G3: V3
B4: 2006 | C4: 13.28159976 | D4: 5.635235049 | E4: 6.585782131 | F4: 4.6 | G4: 5
B5: 2007 | C5: 14.18545617 | D5: 5.007647663 | E5: 6.136998383 | F5: 4.4 | G5: 5
B6: 2008 | C6: 12.48366962 | D6: 4.953339542 | E6: 5.857740586 | F6: 4.2 | G6: 4.666666667
B7: 2009 | C7: 11 | D7: 4.961543427 | E7: 5.652024764 | F7: 4.2 | G7: 4.533333333
B8: 2010 | C8: 10.45963465 | D8: 5.091193913 | E8: 5.694421453 | F8: 4 | G8: 4.333333333
B9: 2011 | C9: 11.49940263 | D9: 4.120701443 | E9: 4.93315574 | F9: 3.9 | G9: 4.1
B10: 2012 | C10: 12.72189349 | D10: 4.81804203 | E10: 5.780138651 | F10: 3.8 | G10: 4.033333333
B11: 2013 | C11: 11.38987225 | D11: 4.697264413 | E11: 5.490396366 | F11: 3.7 | G11: 4.033333333
B12: 2014 | C12: 13.01005322 | D12: 4.76496302 | E12: 5.778351171 | F12: 3.7 | G12: 3.7
B13: 2015 | C13: 15.38693619 | D13: 3.736752905 | E13: 5.125714902 | F13: 3.6 | G13: 3.566666667
B14: 2016 | C14: 13.85165326 | D14: 4.287709223 | E14: 5.403339298 | F14: 3.6 | G14: 3.566666667
B15: Pozn.: Všetky hodnoty priraďujú ľudí do jednotlivých krajín podľa ich trvalého pobytu.

Sheet graf_38
A1: =HYPERLINK("#Zoznam!A1", "Na zoznam") -> Na zoznam | B1: Graf 38: Očakávaná dĺžka života pri narodení (v rokoch)
B2: Zdroj: Register fyzických osôb, Atlas rómskych komunít 2013, Eurostat, výpočty ÚHP
B3: Populacia | C3: 2006 | D3: 2007 | E3: 2008 | F3: 2009 | G3: 2010 | H3: 2011 | I3: 2012 | J3: 2013 | K3: 2014 | L3: 2015
B4: MRK, skratene | C4: 69.44622186 | D4: 69.62786083 | E4: 70.04734731 | F4: 70.86360778 | G4: 70.29326458 | H4: 71.12358625 | I4: 70.82417038 | J4: 69.75733444 | K4: 70.23900244 | L4: 69.69401832
B5: Zvysok populacie | C5: 74.638721 | D5: 74.64918656 | E5: 75.02681728 | F5: 75.35030807 | G5: 75.50962687 | H5: 76.00549925 | I5: 76.15498983 | J5: 76.45987813 | K5: 76.8470518 | L5: 76.37324838
B6: Cela populacia | C6: 74.27459242 | D6: 74.29103673 | E6: 74.69227998 | F6: 75.00716591 | G6: 75.17570343 | H6: 75.67820034 | I6: 75.75205704 | J6: 76.04450534 | K6: 76.41940947 | L6: 75.97038459
B7: EU28 | C7: 78.9 | D7: 79.1 | E7: 79.4 | F7: 79.6 | G7: 79.9 | H7: 80.2 | I7: 80.3 | J7: 80.5 | K7: 80.9 | L7: 80.6
B8: V3 | C8: 75.16666667 | D8: 75.33333333 | E8: 75.7 | F8: 75.9 | G8: 76.26666667 | H8: 76.63333333 | I8: 76.76666667 | J8: 77.06666667 | K8: 77.56666667 | L8: 77.3
B9: Pozn.: Slovenské hodnoty (pre celú populáciu, MRK aj zvyšok populácie) sú očistené o ľudí s prechodným pobytom v zahraničí. Priemer V3 aj EÚ-28 používa trvalý pobyt.

Sheet graf_39
A1: =HYPERLINK("#Zoznam!A1", "Na zoznam") -> Na zoznam | B1: Graf 39: Vzťah bohatstva krajiny a výdavkov na zdravotníctvo, 2017
B2: Zdroj: OECD - Health - Health expenditure and financing; OECD - National Accounts - Gross Domesting Product (Per head, constant prices, constant PPPs, OECD base year)
B3: http://stats.oecd.org/
B4: Country | C4: HDP na obyvateľa | D4: Podiel na HDP (%)
B5: France | C5: =VLOOKUP(B5,'[2]GDP per head, US $, constant pr'!$A$7:$E$46,5,FALSE) -> 36823.0247 | D5: =VLOOKUP(B5,'[2]Share of GDP'!$A$9:$D$44,4,FALSE) -> 8.808
B6: Spain | C6: =VLOOKUP(B6,'[2]GDP per head, US $, constant pr'!$A$7:$E$46,5,FALSE) -> 31765.67897 | D6: =VLOOKUP(B6,'[2]Share of GDP'!$A$9:$D$44,4,FALSE) -> 6.501
B7: Netherlands | C7: =VLOOKUP(B7,'[2]GDP per head, US $, constant pr'!$A$7:$E$46,5,FALSE) -> 46068.79267 | D7: =VLOOKUP(B7,'[2]Share of GDP'!$A$9:$D$44,4,FALSE) -> 8.423
B8: Luxembourg | C8: =VLOOKUP(B8,'[2]GDP per head, US $, constant pr'!$A$7:$E$46,5,FALSE) -> 87919.22797 | D8: =VLOOKUP(B8,'[2]Share of GDP'!$A$9:$D$44,4,FALSE) -> 5.098
B9: Italy | C9: =VLOOKUP(B9,'[2]GDP per head, US $, constant pr'!$A$7:$E$46,5,FALSE) -> 33203.84647 | D9: =VLOOKUP(B9,'[2]Share of GDP'!$A$9:$D$44,4,FALSE) -> 6.702
B10: Belgium | C10: =VLOOKUP(B10,'[2]GDP per head, US $, constant pr'!$A$7:$E$46,5,FALSE) -> 40829.30791 | D10: =VLOOKUP(B10,'[2]Share of GDP'!$A$9:$D$44,4,FALSE) -> 7.923
B11: Sweden | C11: =VLOOKUP(B11,'[2]GDP per head, US $, constant pr'!$A$7:$E$46,5,FALSE) -> 44280.8467 | D11: =VLOOKUP(B11,'[2]Share of GDP'!$A$9:$D$44,4,FALSE) -> 9.174
B12: Denmark | C12: =VLOOKUP(B12,'[2]GDP per head, US $, constant pr'!$A$7:$E$46,5,FALSE) -> 44481.65167 | D12: =VLOOKUP(B12,'[2]Share of GDP'!$A$9:$D$44,4,FALSE) -> 8.649
B13: Austria | C13: =VLOOKUP(B13,'[2]GDP per head, US $, constant pr'!$A$7:$E$46,5,FALSE) -> 43052.61723 | D13: =VLOOKUP(B13,'[2]Share of GDP'!$A$9:$D$44,4,FALSE) -> 7.666
B14: Ireland | C14: =VLOOKUP(B14,'[2]GDP per head, US $, constant pr'!$A$7:$E$46,5,FALSE) -> 59886.1911 | D14: =VLOOKUP(B14,'[2]Share of GDP'!$A$9:$D$44,4,FALSE) -> 5.301
B15: Portugal | C15: =VLOOKUP(B15,'[2]GDP per head, US $, constant pr'!$A$7:$E$46,5,FALSE) -> 26701.88898 | D15: =VLOOKUP(B15,'[2]Share of GDP'!$A$9:$D$44,4,FALSE) -> 5.936
B16: Finland | C16: =VLOOKUP(B16,'[2]GDP per head, US $, constant pr'!$A$7:$E$46,5,FALSE) -> 37886.51001 | D16: =VLOOKUP(B16,'[2]Share of GDP'!$A$9:$D$44,4,FALSE) -> 7.299
B17: Germany | C17: =VLOOKUP(B17,'[2]GDP per head, US $, constant pr'!$A$7:$E$46,5,FALSE) -> 42732.31397 | D17: =VLOOKUP(B17,'[2]Share of GDP'!$A$9:$D$44,4,FALSE) -> 9.339
B18: United Kingdom | C18: =VLOOKUP(B18,'[2]GDP per head, US $, constant pr'!$A$7:$E$46,5,FALSE) -> 38528.30682 | D18: =VLOOKUP(B18,'[2]Share of GDP'!$A$9:$D$44,4,FALSE) -> 7.793
B19: Greece | C19: =VLOOKUP(B19,'[2]GDP per head, US $, constant pr'!$A$7:$E$46,5,FALSE) -> 23707.15902 | D19: =VLOOKUP(B19,'[2]Share of GDP'!$A$9:$D$44,4,FALSE) -> 4.776
B20: Slovenia | C20: =VLOOKUP(B20,'[2]GDP per head, US $, constant pr'!$A$7:$E$46,5,FALSE) -> 28117.49265 | D20: =VLOOKUP(B20,'[2]Share of GDP'!$A$9:$D$44,4,FALSE) -> 6.082
B21: Poland | C21: =VLOOKUP(B21,'[2]GDP per head, US $, constant pr'!$A$7:$E$46,5,FALSE) -> 24186.07003 | D21: =VLOOKUP(B21,'[2]Share of GDP'!$A$9:$D$44,4,FALSE) -> 4.44
B22: Czech Republic | C22: =VLOOKUP(B22,'[2]GDP per head, US $, constant pr'!$A$7:$E$46,5,FALSE) -> 29903.39438 | D22: =VLOOKUP(B22,'[2]Share of GDP'!$A$9:$D$44,4,FALSE) -> 5.966
B23: Estonia | C23: =VLOOKUP(B23,'[2]GDP per head, US $, constant pr'!$A$7:$E$46,5,FALSE) -> 26270.38138 | D23: =VLOOKUP(B23,'[2]Share of GDP'!$A$9:$D$44,4,FALSE) -> 4.901
B24: Slovakia | C24: =VLOOKUP(B24,'[2]GDP per head, US $, constant pr'!$A$7:$E$46,5,FALSE) -> 28122.39545 | D24: =VLOOKUP(B24,'[2]Share of GDP'!$A$9:$D$44,4,FALSE) -> 5.475
B25: Hungary | C25: =VLOOKUP(B25,'[2]GDP per head, US $, constant pr'!$A$7:$E$46,5,FALSE) -> 24086.47259 | D25: =VLOOKUP(B25,'[2]Share of GDP'!$A$9:$D$44,4,FALSE) -> 4.761
B26: Latvia | C26: =VLOOKUP(B26,'[2]GDP per head, US $, constant pr'!$A$7:$E$46,5,FALSE) -> 22168.51394 | D26: =VLOOKUP(B26,'[2]Share of GDP'!$A$9:$D$44,4,FALSE) -> 3.257
B27: Lithuania | C27: =VLOOKUP(B27,'[2]GDP per head, US $, constant pr'!$A$7:$E$46,5,FALSE) -> 25813.24224 | D27: =VLOOKUP(B27,'[2]Share of GDP'!$A$9:$D$44,4,FALSE) -> 4.348

Sheet graf_40
A1: =HYPERLINK("#Zoznam!A1", "Na zoznam") -> Na zoznam | B1: Graf 40: Výdavky na zdravotníctvo ako % verejných výdavkov
B2: Zdroj: Eurostat: General government expenditure by function (COFOG) [gov_10a_exp];
B3: http://ec.europa.eu/eurostat/web/lfs/data/database
C4: 2010 | D4: 2011 | E4: 2012 | F4: 2013 | G4: 2014 | H4: 2015 | I4: 2016 | J4: 2017 | K4: 2018 | L4: 2019 | M4: 2020 | N4: 2021
B5: SK | C5: 0.1710790579 | D5: 0.1670193355 | E5: 0.1668951743 | F5: 0.1652329796 | G5: 0.1671455594 | H5: 0.157884562 | I5: 0.1773685507 | J5: 0.184296409 | K5: 0.1811516217 | L5: 0.1857026055 | M5: 0.1738672416 | N5: 0.1737986805
B6: V3 | C6: 0.129814208 | D6: 0.1294790611 | E6: 0.1290366733 | F6: 0.1300353335 | G6: 0.1289694342 | H6: 0.1327711252 | I6: 0.1349325016
B7: EU15 | C7: 0.1449896755 | D7: 0.1462856996 | E7: 0.1452275619 | F7: 0.1461402522 | G7: 0.1482866695 | H7: 0.1487725077 | I7: 0.1496963413
B8: EU28 | C8: 0.1456263177 | D8: 0.1466473169 | E8: 0.1459984351 | F8: 0.1476141568 | G8: 0.1503758731 | H8: 0.1520157616 | I8: 0.1532061454

Sheet graf_41
A1: =HYPERLINK("#Zoznam!A1", "Na zoznam") -> Na zoznam | B1: Graf 41: Vzťah medzi zdravotným stavom obyvateľstva a výdavkami na zdravotníctvo, 2017
B2: Zdroj: Eurostat: Amenable and preventable deaths of residents (hlth_cd_apr); OECD - Health - Health expenditure and financing;
B3: http://ec.europa.eu/eurostat/web/lfs/data/database; | D3: http://stats.oecd.org
C4: Verejné výdavky na zdravotníctvo | D4: Odvratiteľná úmrtnosť na 100 tisíc obyvateľov
B5: Francúzsko | C5: 3248.55 | D5: 77.79
B6: Španielsko | C6: 2063.58 | D6: 87.55
B7: Holandsko | C7: 3831.922 | D7: 90.55
B8: Luxembursko | C8: 4925.09 | D8: 90.94
B9: Taliansko | C9: 2225.489 | D9: 92.98
B10: Belgicko | C10: 3224.371 | D10: 94.04
B11: Švédsko | C11: 4062.276 | D11: 96.73
B12: Dánsko | C12: 3846.14 | D12: 97.84
B13: Rakúsko | C13: 3295.559 | D13: 109.16
B14: Írsko | C14: 3170.507 | D14: 110.52
B15: Portugalsko | C15: 1585.113 | D15: 111.04
B16: Fínsko | C16: 2765.858 | D16: 111.3
B17: Nemecko | C17: 3981.442 | D17: 116.13
B18: Spojené kráľovstvo | C18: 2985.724 | D18: 117.44
B19: Grécko | C19: 1132.19 | D19: 126.99
B20: Slovinsko | C20: 1709.974 | D20: 128.06
B21: Poľsko | C21: 1087.021 | D21: 168.53
B22: Česká republika | C22: 1783.487 | D22: 179.48
B23: Estónsko | C23: 1282.72 | D23: 224.06
B24: Slovensko | C24: 1539.156 | D24: 249.96
B25: Maďarsko | C25: 1146.749 | D25: 267.67
B26: Lotyšsko | C26: 721.979 | D26: 325.63
B27: Litva | C27: 1122.415 | D27: 325.9

Sheet graf_42
A1: =HYPERLINK("#Zoznam!A1", "Na zoznam") -> Na zoznam | B1: Graf 42: Výdavky na zdravotníctvo (% HDP)
B2: Zdroj: Ageing working group, Európska komisia (2018)
B3: https://ec.europa.eu/info/sites/info/files/economy-finance/ip079_en.pdf
C4: úroveň 2017 | D4: nárast do 2070
B5: SK | C5: 5.685 | D5: 1.101948705
B6: V3 | C6: 5.084333333 | D6: 0.7082358784
B7: EU28 | C7: 6.539095238 | D7: 0.2013384396
B8: EU15 | C8: 7.512 | D8: -0.1724400404

Sheet graf_43
A1: =HYPERLINK("#Zoznam!A1", "Na zoznam") -> Na zoznam | B1: Graf 43: Prognóza vývoja vekovej štruktúry slovenského obyvateľstva
B2: Zdroj: Eurostat: Population on 1st January by age, sex and type of projection [proj_15npms]
B3: http://ec.europa.eu/eurostat/web/lfs/data/database
C4: 2015 | D4: 2020 | E4: 2030 | F4: 2040 | G4: 2050 | H4: 2060 | I4: 2070 | J4: 2080
B5: 0-14 | C5: 0.1531318128 | D5: 0.1546165235 | E5: 0.1437308561 | F5: 0.1348902289 | G5: 0.1395618717 | H5: 0.141510821 | I5: 0.141354742 | J5: 0.1463040615
B6: 15-64 | C6: 0.6950587391 | D6: 0.666080021 | E6: 0.6337238084 | F6: 0.606840109 | G6: 0.5548836867 | H6: 0.5271297489 | I6: 0.5358231622 | J6: 0.533595064
B7: 65-79 | C7: 0.1207361858 | D7: 0.1457094871 | E7: 0.1738461575 | F7: 0.1812607865 | G7: 0.2165489682 | H7: 0.2128094835 | I7: 0.1802065837 | J7: 0.1801275566
B8: 80+ | C8: 0.03107326239 | D8: 0.0335939684 | E8: 0.04869917805 | F8: 0.0770088756 | G8: 0.08900547342 | H8: 0.1185499465 | I8: 0.142615512 | J8: 0.1399733179

Sheet graf_44
A1: =HYPERLINK("#Zoznam!A1", "Na zoznam") -> Na zoznam | B1: Graf 44: Plat lekára ako násobok priemernej mzdy, 2015
B2: Zdroj: OECD - Health - Health Care resources - Remuneration of Doctors
B3: Health at Glance 2017, Kapitola 8
B4: http://stats.oecd.org/
B5: SK | C5: 2.33
B6: V3 | C6: 2.076666667
B7: EU-28 | C7: 2.593157895
B8: EU-15 | C8: 2.899166667

Sheet graf_45
A1: =HYPERLINK("#Zoznam!A1", "Na zoznam") -> Na zoznam | B1: Graf 45: Plat sestry ako násobok priemernej mzdy, 2015
B2: Zdroj: OECD - Health - Health Care resources - Remuneration of hospital nurses
B3: Health at Glance 2017, Kapitola 8
B4: SK pred zvýšením | C4: 0.97
B5: SK po zvýšení | C5: 1.067
B6: V3 | C6: 1.1
B7: EU-28 | C7: 1.104448276
B8: EU-15 | C8: 1.126074271

Sheet graf_46
A1: =HYPERLINK("#Zoznam!A1", "Na zoznam") -> Na zoznam | B1: Graf 46: Vzťah kvality a objemu zdravotnej starostlivosti
B2: Zdroj: Štúdia k stratifikácii nemocníc MZ
B3: Graf bol prevzatý bez podkladových dát

Sheet graf_47
A1: =HYPERLINK("#Zoznam!A1", "Na zoznam") -> Na zoznam | B1: Graf 47: Rozsah a medián objemu resekcie rakoviny pažeráka podľa poskytovateľa, 2014-2016
B2: Zdroj: Ministerstvo Zdravotníctva
B3: Graf bol prevzatý bez podkladových dát
B34: Pozn.: Leapfrod Threshold – limit podľa organizácie Leapfrog, Country Threshold – limit daný v krajine (na Slovensku)

Sheet graf_48
A1: =HYPERLINK("#Zoznam!A1", "Na zoznam") -> Na zoznam | B1: Graf 48: Výdavky poisťovní na lieky na výnimky v 1. polroku 2016, 2017 a 2018
B2: Zdroj: Implementačná jednotka, dáta zdravotných poisťovni
D3: Dôvera | E3: Union | F3: VšZP
B4: Január | C4: 16 | D4: 493450.86 | E4: 114464.16 | F4: 1974832.9
C5: 17 | D5: 877834.965 | E5: 107102.89 | F5: 2311220.95
C6: 18 | D6: 604634.72 | E6: 109076.78 | F6: 2143339.55
B8: Február | C8: 16 | D8: 474538.022 | E8: 120194.69 | F8: 2232865.32
C9: 17 | D9: 826998.3285 | E9: 100835.77 | F9: 2261231.61
C10: 18 | D10: 525294.385 | E10: 103393.95 | F10: 2125969.54
B12: Marec | C12: 16 | D12: 852798.571 | E12: 108682.41 | F12: 2518141.61
C13: 17 | D13: 731721.345 | E13: 115797.12 | F13: 2139987.51
C14: 18 | D14: 551753.995 | E14: 112637.93 | F14: 2279325.72
B16: Apríl | C16: 16 | D16: 812371.061 | E16: 144742.55 | F16: 2385774.28
C17: 17 | D17: 706383.212 | E17: 127639.6 | F17: 2072608.4
C18: 18 | D18: 634713.37 | E18: 139376.31 | F18: 2472307.55
B20: Máj | C20: 16 | D20: 812995.1905 | E20: 116021.66 | F20: 2393524.81
C21: 17 | D21: 731142.34 | E21: 136128.29 | F21: 2432197.69
C22: 18 | D22: 753265.21 | E22: 118998.14 | F22: 2610064.41
B24: Jún | C24: 16 | D24: 997032.169 | E24: 141049.38 | F24: 2463390.48
C25: 17 | D25: 790090.09 | E25: 117469.18 | F25: 2422026.54
C26: 18 | D26: 660549.63 | E26: 84945.09 | F26: 2786940.53
B28: Júl | C28: 16 | D28: 928973.675 | E28: 90020.57 | F28: 2275656.9
C29: 17 | D29: 728822.67 | E29: 110075.68 | F29: 2300204.86
C30: 18 | D30: 0 | E30: 0 | F30: 0
B32: August | C32: 16 | D32: 908726.555 | E32: 86461.37 | F32: 2625410.22
C33: 17 | D33: 833003.7 | E33: 103739.78 | F33: 2570619.86
C34: 18 | D34: 0 | E34: 0 | F34: 0
B36: September | C36: 16 | D36: 909188.035 | E36: 121251.96 | F36: 2524394.87
C37: 17 | D37: 769137.58 | E37: 79013.87 | F37: 2464994.75
C38: 18 | D38: 0 | E38: 0 | F38: 0
B40: Október | C40: 16 | D40: 1097003.085 | E40: 109944.71 | F40: 3002738.25
C41: 17 | D41: 1006444.62 | E41: 112073.22 | F41: 2957077.49
C42: 18 | D42: 0 | E42: 0 | F42: 0
B44: November | C44: 16 | D44: 963500.519 | E44: 143095.9 | F44: 2702453.27
C45: 17 | D45: 775099.86 | E45: 99424.35 | F45: 2596161.04
C46: 18 | D46: 0 | E46: 0 | F46: 0
B48: December | C48: 16 | D48: 806561.038 | E48: 90958.57 | F48: 2645186.4
C49: 17 | D49: 528661.47 | E49: 90371.12 | F49: 2269280.14
C50: 18 | D50: 0 | E50: 0 | F50: 0

Sheet graf_49
A1: =HYPERLINK("#Zoznam!A1", "Na zoznam") -> Na zoznam | B1: Graf 49: Výdavky poisťovní na lieky na výnimky v prepočte na 1 000 poistencov
B2: Zdroj: Implementačná jednotka, dáta zdravotných poisťovni
C3: 1H2016 | D3: 1H2017 | E3: 1H2018
B4: Dôvera | C4: 3136.68681 | D4: 3288.005268 | E4: 2522.366177
B5: Union | C5: 1701.977881 | D5: 1460.983705 | E5: 1399.506718
B6: VšZP | C6: 4268.579489 | D6: 4199.061103 | E6: 4515.682737
B7: Pozn.: 1H označuje 1. polrok.
